Workbook

Sheet Inicio_EG 2x2
A25: Descargue la versión Kindle
K34: Miguel Cervantes Jiménez

Sheet EOC2descentral (hidden)
B2: EQUILIBRIO GENERAL:
B4: 2 productores, 2 consumidores, 2 bienes y 2 factores
B5: PRODUCTORES
C6: Empresa C | D6: Empresa D | E6: Total
B7: Dotación factor 1 | C7: 84.0 | D7: 26.0 | E7: =oculto_EOC!F111 -> 110.00
B8: Dotación factor 2 | C8: 20.0 | D8: 70.0 | E8: =oculto_EOC!F112 -> 90.00
B9: Parámetro tecnológico A | C9: 1.0 | D9: 1.0
B10: Producción | C10: =oculto_EOC!D113 -> 54.6 | D10: =oculto_EOC!E113 -> 47.1
B11: RTS | C11: =oculto_EOC!G111 -> 0.56 | D11: =oculto_EOC!G112 -> 1.79
B13: Demanda bruta factor 1 | C13: =oculto_EOC!D114 -> 70.00 | D13: =oculto_EOC!E114 -> 40.00 | E13: =oculto_EOC!F114 -> 110.00
B14: Demanda bruta factor 2 | C14: =oculto_EOC!D115 -> 30.00 | D14: =oculto_EOC!E115 -> 60.00 | E14: =oculto_EOC!F115 -> 90.00
B15: Producción | C15: =oculto_EOC!D116 -> 54.29 | D15: =oculto_EOC!E116 -> 51.02
B16: RTS | C16: =oculto_EOC!G114 -> 1.00 | D16: =oculto_EOC!G115 -> 1.00
B17: RMT | C17: =oculto_EOC!D119 -> 0.94
B19: Demanda neta factor 1 | C19: =oculto_EOC!D117 -> (14.00) | D19: =oculto_EOC!E117 -> 14.00
B20: Demanda neta factor 2 | C20: =oculto_EOC!D118 -> 10.00 | D20: =oculto_EOC!E118 -> (10.00)
B21: Mejora en producción | C21: =C15-C10 -> (0.33) | D21: =D15-D10 -> 3.91
B23: g | C23: 0.7
B24: 1-g | C24: =oculto_EOC!D121 -> 0.3
B25: d | D25: 0.4
B26: 1-d | D26: =oculto_EOC!E123 -> 0.6
B28: Max. Producción x1; x2=0 | C28: =oculto_EOC!B132 -> 103.57
B29: Max. Producción x2; x1=0 | C29: =oculto_EOC!B133 -> 97.52
C31: Consum. A | D31: Consum. B | E31: Total
B32: Demanda bruta bien 1 | C32: =oculto_EOC!D46 -> 32.57 | D32: =oculto_EOC!E46 -> 21.72 | E32: =oculto_EOC!F46 -> 54.29
B33: Demanda bruta bien 2 | C33: =oculto_EOC!D47 -> 20.41 | D33: =oculto_EOC!E47 -> 30.61 | E33: =oculto_EOC!F47 -> 51.02
B34: Utilidad | C34: =oculto_EOC!D48 -> 27.02 | D34: =oculto_EOC!E48 -> 26.68
B35: RMS | C35: =oculto_EOC!D60 -> 0.94 | D35: =oculto_EOC!E60 -> 0.94
B37: CONSUMIDORES
B38: a | C38: 0.6
B39: 1-a | C39: =oculto_EOC!D53 -> 0.4
B40: b | D40: 0.4
B41: 1-b | D41: =oculto_EOC!E55 -> 0.6
B43: Títulos
B44: Resultados
B45: Insertar datos
B46: Cantidad de equilibrio

Sheet oculto_EOC (hidden)
C1: CAJA DE EDGEWORTH
G2: =POWER((F58/(F44^D53)),1/D52) -> 17.68328375 | H2: =($F$58/($G2^($D$52)))^(1/$D$53) -> 51.01698003 | I2: =POWER((K50/(K44^D53)),1/D52) -> 5.617371358 | J2: =($K$50/($I2^($D$52)))^(1/$D$53) -> 51.01698003 | K2: =POWER((K61/(K55^D53)),1/D52) -> 12.20796526 | L2: =($K$61/($K2^($D$52)))^(1/$D$53) -> 51.01698003 | M2: =POWER((Q50/(Q44^D53)),1/D52) -> 27.67515563 | N2: =($Q$50/($M2^($D$52)))^(1/$D$53) -> 51.01698003 | O2: =POWER((Q61/(Q55^D53)),1/D52) -> 40.31794627 | P2: =($Q$61/($O2^($D$52)))^(1/$D$53) -> 51.01698003 | Q2: =POWER((D45/(F44^D53)),1/D52) -> 17.68328375 | R2: =($D$45/($Q2^($D$52)))^(1/$D$53) -> 51.01698003 | AA2: ORIGINAL | AH2: MENOS 2 | AO2: MENOS 1 | AW2: MAS 1 | BD2: MAS 2 | BK2: DOTACIÓN
A3: Original | B3: Original | F3: Original | H3: Original | I3: menos 2 | J3: menos 2 | K3: menos 1 | L3: menos 1 | M3: mas 1 | N3: mas 1 | O3: masn2 | P3: masn2 | T3: DOTACIÓN | X3: OPTIMO | AB3: CAJA | AF3: ORIGINAL | AG3: ORIGINAL | AH3: NEGATIVO | AI3: NEGATIVO | AJ3: TRANSFORMADA | AM3: ORIGINAL | AN3: ORIGINAL | AO3: NEGATIVO | AP3: NEGATIVO | AQ3: TRANSFORMADA | AT3: ORIGINAL | AU3: ORIGINAL | AV3: NEGATIVO | AW3: NEGATIVO | AX3: TRANSFORMADA | BB3: ORIGINAL | BC3: ORIGINAL | BD3: NEGATIVO | BE3: NEGATIVO | BF3: TRANSFORMADA | BI3: ORIGINAL | BJ3: ORIGINAL | BK3: NEGATIVO | BL3: NEGATIVO | BM3: TRANSFORMADA | BP3: ORIGINAL | BQ3: ORIGINAL | BR3: NEGATIVO | BS3: NEGATIVO | BT3: TRANSFORMADA
A4: x1 | B4: x2 | C4: Unidades | D4: ponderador | F4: x1 | G4: x1 | H4: x2 | I4: x1 | J4: x2 | K4: x1 | L4: x2 | M4: x1 | N4: x2 | O4: x1 | P4: x2 | Q4: DOTA | R4: DOTA | T4: x1linedotación | V4: x2line | X4: x1linedotación | Z4: x2line | AF4: x1 | AG4: x2 | AH4: MENOS X1 | AI4: MENOS X2 | AJ4: x1 | AK4: x2 | AM4: x1 | AN4: x2 | AO4: MENOS X1 | AP4: MENOS X2 | AQ4: x1 | AR4: x2 | AT4: x1 | AU4: x2 | AV4: MENOS X1 | AW4: MENOS X2 | AX4: x1 | AY4: x2 | BB4: x1 | BC4: x2 | BD4: MENOS X1 | BE4: MENOS X2 | BF4: x1 | BG4: x2 | BI4: x1 | BJ4: x2 | BK4: MENOS X1 | BL4: MENOS X2 | BM4: x1 | BN4: x2 | BP4: x1 | BQ4: x2 | BR4: MENOS X1 | BS4: MENOS X2 | BT4: x1 | BU4: x2
A5: =$D$46*E5 -> 0.33 | B5: =($F$58/($A5^($D$52)))^(1/$D$53) -> 20,406.79 | C5: 1 | D5: 0 | E5: 0.01 | F5: =IF($D$46*E5>$F$43,$F$43,$D$46*E5) -> 0.33 | G5: =IF(($F$58/($F5^($D$52)))^(1/$D$53)>$F$44,$G$2,$F5) -> 17.68 | H5: =($F$58/($G5^($D$52)))^(1/$D$53) -> 51.02 | I5: =IF(($K$50/($F5^($D$52)))^(1/$D$53)>$F$44,$I$2,F5) -> 5.62 | J5: =($K$50/($I5^($D$52)))^(1/$D$53) -> 51.02 | K5: =IF(($K$61/($F5^($D$52)))^(1/$D$53)>$F$44,$K$2,F5) -> 12.21 | L5: =($K$61/($K5^($D$52)))^(1/$D$53) -> 51.02 | M5: =IF(($Q$50/($F5^($D$52)))^(1/$D$53)>$F$44,$M$2,F5) -> 27.68 | N5: =($Q$50/(M5^($D$52)))^(1/$D$53) -> 51.02 | O5: =IF(($Q$61/($F5^($D$52)))^(1/$D$53)>$F$44,$O$2,F5) -> 40.32 | P5: =($Q$61/($O5^($D$52)))^(1/$D$53) -> 51.02 | Q5: =IF(($D$45/($F5^($D$52)))^(1/$D$53)>$F$44,$Q$2,F5) -> 17.68328375 | R5: =($D$45/($Q5^($D$52)))^(1/$D$53) -> 51.02 | S5: =IF(B5>$F$44,1,0) -> 1 | T5: =D5*$F$43 -> 0 | U5: =$D$44 -> 20.41 | V5: =$D$43 -> 32.57 | W5: =$F$44*D5 -> 0 | X5: =$D$47 -> 20.41 | Y5: =$D$46 -> 32.57 | Z5: =$D$43 -> 32.57 | AA5: =$F$44*J5 -> 2,602.73 | AB5: =$F$43 -> 54.29 | AC5: =$F$44 -> 51.02 | AD5: 0 | AF5: =$E5*$E$46 -> 0.22 | AG5: =(($E$48)/(AF5^($E$54)))^(1/$E$55) -> 659.48 | AH5: =AF5*-1 -> -0.22 | AI5: -659.48 | AJ5: =AH5+($AF$15*2)+($D$46-$E$46) -> 54.07 | AK5: =AI5+($E$47*2)+($D$47-$E$47) -> -608.46 | AM5: =$E5*$AM$48 -> 0.37 | AN5: =(($AM$50)/(AM5^($E$54)))^(1/$E$55) -> 903.73 | AO5: =AM5*-1 -> -0.37 | AP5: -903.73 | AQ5: =AO5+($AM$15*2)+($AL$48-$AM$48) -> 53.92 | AR5: =AP5+($AN$15*2)+($AL$49-$AM$49) -> -852.71 | AT5: =$E5*$AM$59 -> 0.27 | AU5: =(($AM$61)/(AT5^($E$54)))^(1/$E$55) -> 764.16 | AV5: =AT5*-1 -> -0.27 | AW5: -764.16 | AX5: =AV5+($AT$15*2)+($AL$59-$AM$59) -> 54.01 | AY5: =AW5+($AU$15*2)+($AL$60-$AM$60) -> -713.14 | BB5: =$E5*$BC$48 -> 0.14 | BC5: =(($BC$50)/(BB5^($E$54)))^(1/$E$55) -> 477.55 | BD5: =BB5*-1 -> -0.14 | BE5: -477.55 | BF5: =BD5+($BB$15*2)+($BB$48-$BC$48) -> 54.15 | BG5: =BE5+($BC$15*2)+($BB$49-$BC$49) -> -426.53 | BI5: =$E5*$BC$59 -> 0.06 | BJ5: =(($BC$61)/(BI5^($E$54)))^(1/$E$55) -> 251.80 | BK5: =BI5*-1 -> -0.06 | BL5: -251.80 | BM5: =BK5+($BI$15*2)+($BB$59-$BC$59) -> 54.22 | BN5: =BL5+($BJ$15*2)+($BB$60-$BC$60) -> -200.78 | BP5: =E5*BL46 -> 0.22 | BQ5: =(($BL$48)/(BP5^($E$54)))^(1/$E$55) -> 659.48 | BR5: =BP5*-1 -> -0.22 | BS5: -659.48 | BT5: =BR5+($BP$15*2)+($BK$46-$BL$46) -> 54.07 | BU5: =BS5+($BQ$15*2)+($BK$47-$BL$47) -> -608.46
A6: 3.26 | B6: 645.32 | C6: 2 | D6: 0.01 | E6: 0.10 | F6: 3.26 | G6: 17.68 | H6: 51.02 | I6: =IF(($K$50/($F6^($D$52)))^(1/$D$53)>$F$44,$I$2,F6) -> 5.62 | J6: 51.02 | K6: =IF(($K$61/($F6^($D$52)))^(1/$D$53)>$F$44,$K$2,F6) -> 12.21 | L6: 51.02 | M6: =IF(($Q$50/($F6^($D$52)))^(1/$D$53)>$F$44,$M$2,F6) -> 27.68 | N6: 51.02 | O6: =IF(($Q$61/($F6^($D$52)))^(1/$D$53)>$F$44,$O$2,F6) -> 40.32 | P6: 51.02 | Q6: =IF(($D$45/($F6^($D$52)))^(1/$D$53)>$F$44,$Q$2,F6) -> 17.68328375 | R6: 51.02 | S6: 1 | T6: 0.54 | U6: 20.41 | V6: 32.57 | W6: 0.51 | X6: =$D$47 -> 20.41 | Y6: 32.57 | Z6: 32.57 | AA6: 2,602.73 | AB6: 54.29 | AC6: 51.02 | AD6: 0 | AF6: 2.17 | AG6: 142.08 | AH6: -2.17 | AI6: -142.08 | AJ6: 52.12 | AK6: -91.06 | AM6: 3.65 | AN6: 194.70 | AO6: -3.65 | AP6: -194.70 | AQ6: 50.64 | AR6: -143.69 | AT6: 2.73 | AU6: 164.63 | AV6: -2.73 | AW6: -164.63 | AX6: 51.56 | AY6: -113.62 | BB6: 1.38 | BC6: 102.89 | BD6: -1.38 | BE6: -102.89 | BF6: 52.91 | BG6: -51.87 | BI6: 0.63 | BJ6: 54.25 | BK6: -0.63 | BL6: -54.25 | BM6: 53.65 | BN6: -3.23 | BP6: =E6*$BL$46 -> 2.17 | BQ6: 142.08 | BR6: -2.17 | BS6: -142.08 | BT6: 52.12 | BU6: -91.06
A7: 6.51 | B7: 228.15 | C7: 3 | D7: 0.10 | E7: 0.20 | F7: 6.51 | G7: 17.68 | H7: 51.02 | I7: 6.51 | J7: 40.85 | K7: 12.21 | L7: 51.02 | M7: 27.68 | N7: 51.02 | O7: 40.32 | P7: 51.02 | Q7: 17.68328375 | R7: 51.02 | S7: 1 | T7: 5.43 | U7: 20.41 | V7: 32.57 | W7: 5.10 | X7: 20.41 | Y7: 32.57 | Z7: 32.57 | AA7: 2,084.01 | AB7: 54.29 | AC7: 51.02 | AD7: 0 | AF7: 4.34 | AG7: 89.50 | AH7: -4.34 | AI7: -89.50 | AJ7: 49.95 | AK7: -38.49 | AM7: 7.30 | AN7: 122.65 | AO7: -7.30 | AP7: -122.65 | AQ7: 46.98 | AR7: -71.64 | AT7: 5.47 | AU7: 103.71 | AV7: -5.47 | AW7: -103.71 | AX7: 48.82 | AY7: -52.69 | BB7: 2.76 | BC7: 64.81 | BD7: -2.76 | BE7: -64.81 | BF7: 51.52 | BG7: -13.80 | BI7: 1.27 | BJ7: 34.17 | BK7: -1.27 | BL7: -34.17 | BM7: 53.02 | BN7: 16.84 | BP7: 4.34 | BQ7: 89.50 | BR7: -4.34 | BS7: -89.50 | BT7: 49.95 | BU7: -38.49
A8: 9.77 | B8: 124.19 | C8: 4 | D8: 0.15 | E8: 0.30 | F8: 9.77 | G8: 17.68 | H8: 51.02 | I8: 9.77 | J8: 22.24 | K8: 12.21 | L8: 51.02 | M8: 27.68 | N8: 51.02 | O8: 40.32 | P8: 51.02 | Q8: 17.68328375 | R8: 51.02 | S8: 1 | T8: 8.14 | U8: 20.41 | V8: 32.57 | W8: 7.65 | X8: 20.41 | Y8: 32.57 | Z8: 32.57 | AA8: 1,134.39 | AB8: 54.29 | AC8: 51.02 | AD8: 0 | AF8: 6.51 | AG8: 68.30 | AH8: -6.51 | AI8: -68.30 | AJ8: 47.77 | AK8: -17.29 | AM8: 10.96 | AN8: 93.60 | AO8: -10.96 | AP8: -93.60 | AQ8: 43.33 | AR8: -42.59 | AT8: 8.20 | AU8: 79.15 | AV8: -8.20 | AW8: -79.15 | AX8: 46.09 | AY8: -28.13 | BB8: 4.15 | BC8: 49.46 | BD8: -4.15 | BE8: -49.46 | BF8: 50.14 | BG8: 1.55 | BI8: 1.90 | BJ8: 26.08 | BK8: -1.90 | BL8: -26.08 | BM8: 52.39 | BN8: 24.94 | BP8: 6.51 | BQ8: 68.30 | BR8: -6.51 | BS8: -68.30 | BT8: 47.77 | BU8: -17.29
A9: 13.03 | B9: 80.66 | C9: 5 | D9: 0.20 | E9: 0.40 | F9: 13.03 | G9: 17.68 | H9: 51.02 | I9: 13.03 | J9: 14.44 | K9: 13.03 | L9: 46.27 | M9: 27.68 | N9: 51.02 | O9: 40.32 | P9: 51.02 | Q9: 17.68328375 | R9: 51.02 | S9: 1 | T9: 10.86 | U9: 20.41 | V9: 32.57 | W9: 10.20 | X9: 20.41 | Y9: 32.57 | Z9: 32.57 | AA9: 736.81 | AB9: 54.29 | AC9: 51.02 | AD9: 0 | AF9: 8.69 | AG9: 56.38 | AH9: -8.69 | AI9: -56.38 | AJ9: 45.60 | AK9: -5.37 | AM9: 14.61 | AN9: 77.27 | AO9: -14.61 | AP9: -77.27 | AQ9: 39.68 | AR9: -26.25 | AT9: 10.93 | AU9: 65.33 | AV9: -10.93 | AW9: -65.33 | AX9: 43.36 | AY9: -14.32 | BB9: 5.53 | BC9: 40.83 | BD9: -5.53 | BE9: -40.83 | BF9: 48.76 | BG9: 10.19 | BI9: 2.53 | BJ9: 21.53 | BK9: -2.53 | BL9: -21.53 | BM9: 51.75 | BN9: 29.49 | BP9: 8.69 | BQ9: 56.38 | BR9: -8.69 | BS9: -56.38 | BT9: 45.60 | BU9: -5.37
A10: 16.29 | B10: 57.72 | C10: 6 | D10: 0.25 | E10: 0.50 | F10: 16.29 | G10: 17.68 | H10: 51.02 | I10: 16.29 | J10: 10.33 | K10: 16.29 | L10: 33.11 | M10: 27.68 | N10: 51.02 | O10: 40.32 | P10: 51.02 | Q10: 17.68328375 | R10: 51.02 | S10: 1 | T10: 13.57 | U10: 20.41 | V10: 32.57 | W10: 12.75 | X10: 20.41 | Y10: 32.57 | Z10: 32.57 | AA10: 527.22 | AB10: 54.29 | AC10: 51.02 | AD10: 0 | AF10: 10.86 | AG10: 48.59 | AH10: -10.86 | AI10: -48.59 | AJ10: 43.43 | AK10: 2.43 | AM10: 18.26 | AN10: 66.59 | AO10: -18.26 | AP10: -66.59 | AQ10: 36.03 | AR10: -15.57 | AT10: 13.67 | AU10: 56.30 | AV10: -13.67 | AW10: -56.30 | AX10: 40.62 | AY10: -5.29 | BB10: 6.91 | BC10: 35.19 | BD10: -6.91 | BE10: -35.19 | BF10: 47.38 | BG10: 15.83 | BI10: 3.17 | BJ10: 18.55 | BK10: -3.17 | BL10: -18.55 | BM10: 51.12 | BN10: 32.46 | BP10: 10.86 | BQ10: 48.59 | BR10: -10.86 | BS10: -48.59 | BT10: 43.43 | BU10: 2.43
A11: 19.54 | B11: 43.91 | C11: 7 | D11: 0.30 | E11: 0.60 | F11: 19.54 | G11: 19.54 | H11: 43.91 | I11: 19.54 | J11: 7.86 | K11: 19.54 | L11: 25.19 | M11: 27.68 | N11: 51.02 | O11: 40.32 | P11: 51.02 | Q11: 19.5437323 | R11: 43.91 | S11: 0 | T11: 16.29 | U11: 20.41 | V11: 32.57 | W11: 15.31 | X11: 20.41 | Y11: 32.57 | Z11: 32.57 | AA11: 401.07 | AB11: 54.29 | AC11: 51.02 | AD11: 0 | AF11: 13.03 | AG11: 43.03 | AH11: -13.03 | AI11: -43.03 | AJ11: 41.26 | AK11: 7.99 | AM11: 21.91 | AN11: 58.97 | AO11: -21.91 | AP11: -58.97 | AQ11: 32.38 | AR11: -7.95 | AT11: 16.40 | AU11: 49.86 | AV11: -16.40 | AW11: -49.86 | AX11: 37.89 | AY11: 1.16 | BB11: 8.29 | BC11: 31.16 | BD11: -8.29 | BE11: -31.16 | BF11: 46.00 | BG11: 19.86 | BI11: 3.80 | BJ11: 16.43 | BK11: -3.80 | BL11: -16.43 | BM11: 50.49 | BN11: 34.59 | BP11: 13.03 | BQ11: 43.03 | BR11: -13.03 | BS11: -43.03 | BT11: 41.26 | BU11: 7.99
A12: 22.80 | B12: 34.84 | C12: 8 | D12: 0.35 | E12: 0.70 | F12: 22.80 | G12: 22.80 | H12: 34.84 | I12: 22.80 | J12: 6.24 | K12: 22.80 | L12: 19.99 | M12: 27.68 | N12: 51.02 | O12: 40.32 | P12: 51.02 | Q12: 22.80102101 | R12: 34.84 | S12: 0 | T12: 19.00 | U12: 20.41 | V12: 32.57 | W12: 17.86 | X12: 20.41 | Y12: 32.57 | Z12: 32.57 | AA12: 318.27 | AB12: 54.29 | AC12: 51.02 | AD12: 0 | AF12: 15.20 | AG12: 38.83 | AH12: -15.20 | AI12: -38.83 | AJ12: 39.09 | AK12: 12.19 | AM12: 25.56 | AN12: 53.21 | AO12: -25.56 | AP12: -53.21 | AQ12: 28.72 | AR12: -2.19 | AT12: 19.13 | AU12: 44.99 | AV12: -19.13 | AW12: -44.99 | AX12: 35.16 | AY12: 6.03 | BB12: 9.67 | BC12: 28.12 | BD12: -9.67 | BE12: -28.12 | BF12: 44.61 | BG12: 22.90 | BI12: 4.43 | BJ12: 14.82 | BK12: -4.43 | BL12: -14.82 | BM12: 49.85 | BN12: 36.19 | BP12: 15.20 | BQ12: 38.83 | BR12: -15.20 | BS12: -38.83 | BT12: 39.09 | BU12: 12.19
A13: 26.06 | B13: 28.52 | C13: 9 | D13: 0.40 | E13: 0.80 | F13: 26.06 | G13: 26.06 | H13: 28.52 | I13: 26.06 | J13: 5.11 | K13: 26.06 | L13: 16.36 | M13: 27.68 | N13: 51.02 | O13: 40.32 | P13: 51.02 | Q13: 26.05830973 | R13: 28.52 | S13: 0 | T13: 21.72 | U13: 20.41 | V13: 32.57 | W13: 20.41 | X13: 20.41 | Y13: 32.57 | Z13: 32.57 | AA13: 260.50 | AB13: 54.29 | AC13: 51.02 | AD13: 0 | AF13: 17.37 | AG13: 35.52 | AH13: -17.37 | AI13: -35.52 | AJ13: 36.92 | AK13: 15.50 | AM13: 29.22 | AN13: 48.68 | AO13: -29.22 | AP13: -48.68 | AQ13: 25.07 | AR13: 2.34 | AT13: 21.87 | AU13: 41.16 | AV13: -21.87 | AW13: -41.16 | AX13: 32.42 | AY13: 9.86 | BB13: 11.06 | BC13: 25.72 | BD13: -11.06 | BE13: -25.72 | BF13: 43.23 | BG13: 25.30 | BI13: 5.07 | BJ13: 13.56 | BK13: -5.07 | BL13: -13.56 | BM13: 49.22 | BN13: 37.45 | BP13: 17.37 | BQ13: 35.52 | BR13: -17.37 | BS13: -35.52 | BT13: 36.92 | BU13: 15.50
A14: 29.32 | B14: =($F$58/($A14^($D$52)))^(1/$D$53) -> 23.90 | C14: 10 | D14: 0.45 | E14: 0.90 | F14: 29.32 | G14: 29.32 | H14: 23.90 | I14: 29.32 | J14: 4.28 | K14: 29.32 | L14: 13.71 | M14: 29.32 | N14: 46.80 | O14: 40.32 | P14: 51.02 | Q14: 29.31559845 | R14: 23.90 | S14: =IF(B14>$F$44,1,0) -> 0 | T14: 24.43 | U14: 20.41 | V14: 32.57 | W14: 22.96 | X14: 20.41 | Y14: 32.57 | Z14: 32.57 | AA14: 218.31 | AB14: 54.29 | AC14: 51.02 | AD14: 0 | AF14: 19.54 | AG14: 32.84 | AH14: -19.54 | AI14: -32.84 | AJ14: 34.74 | AK14: 18.18 | AM14: 32.87 | AN14: 45.00 | AO14: -32.87 | AP14: -45.00 | AQ14: 21.42 | AR14: 6.02 | AT14: 24.60 | AU14: 38.05 | AV14: -24.60 | AW14: -38.05 | AX14: 29.69 | AY14: 12.97 | BB14: 12.44 | BC14: 23.78 | BD14: -12.44 | BE14: -23.78 | BF14: 41.85 | BG14: 27.24 | BI14: 5.70 | BJ14: 12.54 | BK14: -5.70 | BL14: -12.54 | BM14: 48.59 | BN14: 38.48 | BP14: 19.54 | BQ14: 32.84 | BR14: -19.54 | BS14: -32.84 | BT14: 34.74 | BU14: 18.18
A15: 32.57 | B15: =($F$58/($F15^($D$52)))^(1/$D$53) -> 20.41 | C15: 11 | D15: 0.50 | E15: 1.00 | F15: 32.57 | G15: 32.57 | H15: 20.41 | I15: 32.57 | J15: 3.65 | K15: 32.57 | L15: 11.71 | M15: 32.57 | N15: 39.95 | O15: 40.32 | P15: 51.02 | Q15: 32.57288716 | R15: 20.41 | T15: 27.14 | U15: 20.41 | V15: 32.57 | W15: 25.51 | X15: 20.41 | Y15: 32.57 | Z15: 32.57 | AA15: 186.40 | AB15: 54.29 | AC15: 51.02 | AD15: 0 | AF15: =$E15*$E$46 -> 21.72 | AG15: =(($E$48)/(AF15^($E$54)))^(1/$E$55) -> 30.61 | AH15: =AF15*-1 -> -21.72 | AI15: =AG15*-1 -> -30.61 | AJ15: 32.57 | AK15: =AI15+($E$47*2)+($D$47-$E$47) -> 20.41 | AM15: 36.52 | AN15: 41.95 | AO15: =AM15*-1 -> -36.52 | AP15: =AN15*-1 -> -41.95 | AQ15: 17.77 | AR15: 9.07 | AT15: 27.33 | AU15: 35.47 | AV15: =AT15*-1 -> -27.33 | AW15: =AU15*-1 -> -35.47 | AX15: 26.96 | AY15: 15.55 | BB15: 13.82 | BC15: 22.17 | BD15: =BB15*-1 -> -13.82 | BE15: =BC15*-1 -> -22.17 | BF15: 40.47 | BG15: 28.85 | BI15: 6.33 | BJ15: 11.69 | BK15: =BI15*-1 -> -6.33 | BL15: =BJ15*-1 -> -11.69 | BM15: 47.95 | BN15: 39.33 | BP15: 21.72 | BQ15: 30.61 | BR15: =BP15*-1 -> -21.72 | BS15: =BQ15*-1 -> -30.61 | BT15: 32.57 | BU15: 20.41
A16: 35.83 | B16: 17.69 | C16: 12 | D16: 0.55 | E16: 1.10 | F16: 35.83 | G16: 35.83 | H16: 17.69 | I16: 35.83 | J16: 3.17 | K16: 35.83 | L16: 10.15 | M16: 35.83 | N16: 34.63 | O16: 40.32 | P16: 51.02 | Q16: 35.83017588 | R16: 17.69 | T16: 29.86 | U16: 20.41 | V16: 32.57 | W16: 28.06 | X16: 20.41 | Y16: 32.57 | Z16: 32.57 | AA16: 161.57 | AB16: 54.29 | AC16: 51.02 | AD16: 0 | AF16: =$E16*$E$46 -> 23.89 | AG16: =(($E$48)/(AF16^($E$54)))^(1/$E$55) -> 28.73 | AH16: =AF16*-1 -> -23.89 | AI16: -28.73 | AJ16: 30.40 | AK16: =AI16+($E$47*2)+($D$47-$E$47) -> 22.29 | AM16: 40.17 | AN16: 39.36 | AO16: =AM16*-1 -> -40.17 | AP16: -39.36 | AQ16: 14.11 | AR16: 11.65 | AT16: 30.06 | AU16: 33.29 | AV16: =AT16*-1 -> -30.06 | AW16: -33.29 | AX16: 24.22 | AY16: 17.73 | BB16: 15.20 | BC16: 20.80 | BD16: =BB16*-1 -> -15.20 | BE16: -20.80 | BF16: 39.09 | BG16: 30.22 | BI16: 6.97 | BJ16: 10.97 | BK16: =BI16*-1 -> -6.97 | BL16: -10.97 | BM16: 47.32 | BN16: 40.05 | BP16: 23.89 | BQ16: 28.73 | BR16: =BP16*-1 -> -23.89 | BS16: -28.73 | BT16: 30.40 | BU16: 22.29
A17: 39.09 | B17: 15.52 | C17: 13 | D17: 0.60 | E17: 1.20 | F17: =IF($D$46*E17>$F$43,$F$43,$D$46*E17) -> 39.09 | G17: 39.09 | H17: 15.52 | I17: 39.09 | J17: 2.78 | K17: 39.09 | L17: 8.90 | M17: 39.09 | N17: 30.39 | O17: 40.32 | P17: 51.02 | Q17: 39.08746459 | R17: 15.52 | T17: 32.57 | U17: 20.41 | V17: 32.57 | W17: 30.61 | X17: 20.41 | Y17: 32.57 | Z17: 32.57 | AA17: 141.80 | AB17: 54.29 | AC17: 51.02 | AD17: 0 | AF17: 26.06 | AG17: 27.11 | AH17: -26.06 | AI17: -27.11 | AJ17: 28.23 | AK17: 23.91 | AM17: 43.83 | AN17: 37.15 | AO17: -43.83 | AP17: -37.15 | AQ17: 10.46 | AR17: 13.87 | AT17: 32.80 | AU17: 31.41 | AV17: -32.80 | AW17: -31.41 | AX17: 21.49 | AY17: 19.61 | BB17: 16.58 | BC17: 19.63 | BD17: -16.58 | BE17: -19.63 | BF17: 37.71 | BG17: 31.39 | BI17: 7.60 | BJ17: 10.35 | BK17: -7.60 | BL17: -10.35 | BM17: 46.69 | BN17: 40.67 | BP17: 26.06 | BQ17: 27.11 | BR17: -26.06 | BS17: -27.11 | BT17: 28.23 | BU17: 23.91
A18: 42.34 | B18: 13.77 | C18: 14 | D18: 0.65 | E18: 1.30 | F18: 42.34 | G18: 42.34 | H18: 13.77 | I18: 42.34 | J18: 2.46 | K18: 42.34 | L18: 7.90 | M18: 42.34 | N18: 26.96 | O18: 42.34 | P18: 47.40 | Q18: 42.34475331 | R18: 13.77 | T18: 35.29 | U18: 20.41 | V18: 32.57 | W18: 33.16 | X18: 20.41 | Y18: 32.57 | Z18: 32.57 | AA18: 125.76 | AB18: 54.29 | AC18: 51.02 | AD18: 0 | AF18: 28.23 | AG18: 25.70 | AH18: -28.23 | AI18: -25.70 | AJ18: 26.06 | AK18: 25.32 | AM18: 47.48 | AN18: 35.22 | AO18: -47.48 | AP18: -35.22 | AQ18: 6.81 | AR18: 15.80 | AT18: 35.53 | AU18: 29.78 | AV18: -35.53 | AW18: -29.78 | AX18: 18.76 | AY18: 21.24 | BB18: 17.96 | BC18: 18.61 | BD18: -17.96 | BE18: -18.61 | BF18: 36.32 | BG18: 32.41 | BI18: 8.23 | BJ18: 9.81 | BK18: -8.23 | BL18: -9.81 | BM18: 46.05 | BN18: 41.20 | BP18: 28.23 | BQ18: 25.70 | BR18: -28.23 | BS18: -25.70 | BT18: 26.06 | BU18: 25.32
A19: 45.60 | B19: 12.32 | C19: 15 | D19: 0.70 | E19: 1.40 | F19: 45.60 | G19: 45.60 | H19: 12.32 | I19: 45.60 | J19: 2.21 | K19: 45.60 | L19: 7.07 | M19: 45.60 | N19: 24.12 | O19: 45.60 | P19: 42.41 | Q19: 45.60204203 | R19: 12.32 | T19: 38.00 | U19: 20.41 | V19: 32.57 | W19: 35.71 | X19: 20.41 | Y19: 32.57 | Z19: 32.57 | AA19: 112.53 | AB19: 54.29 | AC19: 51.02 | AD19: 0 | AF19: 30.40 | AG19: 24.46 | AH19: -30.40 | AI19: -24.46 | AJ19: 23.89 | AK19: 26.56 | AM19: 51.13 | AN19: 33.52 | AO19: -51.13 | AP19: -33.52 | AQ19: 3.16 | AR19: 17.50 | AT19: 38.26 | AU19: 28.34 | AV19: -38.26 | AW19: -28.34 | AX19: 16.02 | AY19: 22.68 | BB19: 19.35 | BC19: 17.71 | BD19: -19.35 | BE19: -17.71 | BF19: 34.94 | BG19: 33.30 | BI19: 8.87 | BJ19: 9.34 | BK19: -8.87 | BL19: -9.34 | BM19: 45.42 | BN19: 41.68 | BP19: 30.40 | BQ19: 24.46 | BR19: -30.40 | BS19: -24.46 | BT19: 23.89 | BU19: 26.56
A20: 48.86 | B20: 11.11 | C20: 16 | D20: 0.75 | E20: 1.50 | F20: 48.86 | G20: 48.86 | H20: 11.11 | I20: 48.86 | J20: 1.99 | K20: 48.86 | L20: 6.37 | M20: 48.86 | N20: 21.75 | O20: 48.86 | P20: 38.24 | Q20: 48.85933074 | R20: 11.11 | T20: 40.72 | U20: 20.41 | V20: 32.57 | W20: 38.26 | X20: 20.41 | Y20: 32.57 | Z20: 32.57 | AA20: 101.46 | AB20: 54.29 | AC20: 51.02 | AD20: 0 | AF20: 32.57 | AG20: 23.36 | AH20: -32.57 | AI20: -23.36 | AJ20: 21.72 | AK20: 27.66 | AM20: 54.78 | AN20: 32.01 | AO20: -54.78 | AP20: -32.01 | AQ20: -0.49 | AR20: 19.01 | AT20: 41.00 | AU20: 27.07 | AV20: -41.00 | AW20: -27.07 | AX20: 13.29 | AY20: 23.95 | BB20: 20.73 | BC20: 16.92 | BD20: -20.73 | BE20: -16.92 | BF20: 33.56 | BG20: 34.10 | BI20: 9.50 | BJ20: 8.92 | BK20: -9.50 | BL20: -8.92 | BM20: 44.79 | BN20: 42.10 | BP20: 32.57 | BQ20: 23.36 | BR20: -32.57 | BS20: -23.36 | BT20: 21.72 | BU20: 27.66
A21: 52.12 | B21: 10.08 | C21: 17 | D21: 0.80 | E21: 1.60 | F21: 52.12 | G21: 52.12 | H21: 10.08 | I21: 52.12 | J21: 1.81 | K21: 52.12 | L21: 5.78 | M21: 52.12 | N21: 19.74 | O21: 52.12 | P21: 34.71 | Q21: 52.11661946 | R21: 10.08 | T21: 43.43 | U21: 20.41 | V21: 32.57 | W21: 40.81 | X21: 20.41 | Y21: 32.57 | Z21: 32.57 | AA21: 92.10 | AB21: 54.29 | AC21: 51.02 | AD21: 0 | AF21: 34.74 | AG21: 22.38 | AH21: -34.74 | AI21: -22.38 | AJ21: 19.54 | AK21: 28.64 | AM21: 58.43 | AN21: 30.66 | AO21: -58.43 | AP21: -30.66 | AQ21: -4.15 | AR21: 20.35 | AT21: 43.73 | AU21: 25.93 | AV21: -43.73 | AW21: -25.93 | AX21: 10.56 | AY21: 25.09 | BB21: 22.11 | BC21: 16.20 | BD21: -22.11 | BE21: -16.20 | BF21: 32.18 | BG21: 34.81 | BI21: 10.13 | BJ21: 8.54 | BK21: -10.13 | BL21: -8.54 | BM21: 44.15 | BN21: 42.47 | BP21: 34.74 | BQ21: 22.38 | BR21: -34.74 | BS21: -22.38 | BT21: 19.54 | BU21: 28.64
A22: 55.37 | B22: 9.48 | C22: 18 | D22: 0.85 | E22: 1.70 | F22: 54.29 | G22: 54.29 | H22: 9.48 | I22: 54.29 | J22: 1.70 | K22: 54.29 | L22: 5.44 | M22: 54.29 | N22: 18.57 | O22: 54.29 | P22: 32.65 | Q22: 54.28814527 | R22: 9.48 | T22: 46.14 | U22: 20.41 | V22: 32.57 | W22: 43.36 | X22: 20.41 | Y22: 32.57 | Z22: 32.57 | AA22: 86.63 | AB22: 54.29 | AC22: 51.02 | AD22: 0 | AF22: 36.92 | AG22: 21.49 | AH22: -36.92 | AI22: -21.49 | AJ22: 17.37 | AK22: 29.53 | AM22: 62.09 | AN22: 29.45 | AO22: -62.09 | AP22: -29.45 | AQ22: -7.80 | AR22: 21.57 | AT22: 46.46 | AU22: 24.90 | AV22: -46.46 | AW22: -24.90 | AX22: 7.82 | AY22: 26.12 | BB22: 23.49 | BC22: 15.56 | BD22: -23.49 | BE22: -15.56 | BF22: 30.80 | BG22: 35.46 | BI22: 10.77 | BJ22: 8.21 | BK22: -10.77 | BL22: -8.21 | BM22: 43.52 | BN22: 42.81 | BP22: 36.92 | BQ22: 21.49 | BR22: -36.92 | BS22: -21.49 | BT22: 17.37 | BU22: 29.53
A23: 58.63 | B23: 9.48 | C23: 19 | D23: 0.90 | E23: 1.80 | F23: 54.29 | G23: 54.29 | H23: 9.48 | I23: 54.29 | J23: 1.70 | K23: 54.29 | L23: 5.44 | M23: 54.29 | N23: 18.57 | O23: 54.29 | P23: 32.65 | Q23: 54.28814527 | R23: 9.48 | T23: 48.86 | U23: 20.41 | V23: 32.57 | W23: 45.92 | X23: 20.41 | Y23: 32.57 | Z23: 32.57 | AA23: 86.63 | AB23: 54.29 | AC23: 51.02 | AD23: 0 | AF23: 39.09 | AG23: 20.69 | AH23: -39.09 | AI23: -20.69 | AJ23: 15.20 | AK23: 30.33 | AM23: 65.74 | AN23: 28.35 | AO23: -65.74 | AP23: -28.35 | AQ23: -11.45 | AR23: 22.67 | AT23: 49.20 | AU23: 23.97 | AV23: -49.20 | AW23: -23.97 | AX23: 5.09 | AY23: 27.05 | BB23: 24.87 | BC23: 14.98 | BD23: -24.87 | BE23: -14.98 | BF23: 29.41 | BG23: 36.04 | BI23: 11.40 | BJ23: 7.90 | BK23: -11.40 | BL23: -7.90 | BM23: 42.89 | BN23: 43.12 | BP23: 39.09 | BQ23: 20.69 | BR23: -39.09 | BS23: -20.69 | BT23: 15.20 | BU23: 30.33
A24: 61.89 | B24: 9.48 | C24: 20 | D24: 0.95 | E24: 1.90 | F24: 54.29 | G24: 54.29 | H24: 9.48 | I24: 54.29 | J24: 1.70 | K24: 54.29 | L24: 5.44 | M24: 54.29 | N24: 18.57 | O24: 54.29 | P24: 32.65 | Q24: 54.28814527 | R24: 9.48 | T24: 51.57 | U24: 20.41 | V24: 32.57 | W24: 48.47 | X24: 20.41 | Y24: 32.57 | Z24: 32.57 | AA24: 86.63 | AB24: 54.29 | AC24: 51.02 | AD24: 0 | AF24: 41.26 | AG24: 19.95 | AH24: -41.26 | AI24: -19.95 | AJ24: 13.03 | AK24: 31.06 | AM24: 69.39 | AN24: 27.34 | AO24: -69.39 | AP24: -27.34 | AQ24: -15.10 | AR24: 23.67 | AT24: 51.93 | AU24: 23.12 | AV24: -51.93 | AW24: -23.12 | AX24: 2.36 | AY24: 27.90 | BB24: 26.26 | BC24: 14.45 | BD24: -26.26 | BE24: -14.45 | BF24: 28.03 | BG24: 36.57 | BI24: 12.03 | BJ24: 7.62 | BK24: -12.03 | BL24: -7.62 | BM24: 42.25 | BN24: 43.40 | BP24: 41.26 | BQ24: 19.95 | BR24: -41.26 | BS24: -19.95 | BT24: 13.03 | BU24: 31.06
A25: 65.15 | B25: 9.48 | C25: 21 | D25: 1.00 | E25: 2.00 | F25: 54.29 | G25: 54.29 | H25: 9.48 | I25: 54.29 | J25: 1.70 | K25: 54.29 | L25: 5.44 | M25: 54.29 | N25: 18.57 | O25: 54.29 | P25: 32.65 | Q25: 54.28814527 | R25: 9.48 | T25: 54.29 | U25: 20.41 | V25: 32.57 | W25: 51.02 | X25: 20.41 | Y25: 32.57 | Z25: 32.57 | AA25: 86.63 | AB25: 54.29 | AC25: 51.02 | AD25: 0 | AF25: 43.43 | AG25: 19.28 | AH25: -43.43 | AI25: -19.28 | AJ25: 10.86 | AK25: 31.73 | AM25: 73.04 | AN25: 26.43 | AO25: -73.04 | AP25: -26.43 | AQ25: -18.75 | AR25: 24.59 | AT25: 54.66 | AU25: 22.34 | AV25: -54.66 | AW25: -22.34 | AX25: -0.37 | AY25: 28.67 | BB25: 27.64 | BC25: 13.96 | BD25: -27.64 | BE25: -13.96 | BF25: 26.65 | BG25: 37.05 | BI25: 12.67 | BJ25: 7.36 | BK25: -12.67 | BL25: -7.36 | BM25: 41.62 | BN25: 43.65 | BP25: 43.43 | BQ25: 19.28 | BR25: -43.43 | BS25: -19.28 | BT25: 10.86 | BU25: 31.73
A26: 68.40 | B26: 9.48 | C26: 22 | D26: 1.05 | E26: 2.10 | F26: 54.29 | G26: 54.29 | H26: 9.48 | I26: 54.29 | J26: 1.70 | K26: 54.29 | L26: 5.44 | M26: 54.29 | N26: 18.57 | O26: 54.29 | P26: 32.65 | Q26: 54.28814527 | R26: 9.48 | T26: 57.00 | U26: 20.41 | V26: 32.57 | W26: 53.57 | X26: 20.41 | Y26: 32.57 | Z26: 32.57 | AA26: 86.63 | AB26: 54.29 | AC26: 51.02 | AD26: 0 | AF26: 45.60 | AG26: 18.67 | AH26: -45.60 | AI26: -18.67 | AJ26: 8.69 | AK26: 32.35 | AM26: 76.69 | AN26: 25.58 | AO26: -76.69 | AP26: -25.58 | AQ26: -22.41 | AR26: 25.44 | AT26: 57.40 | AU26: 21.63 | AV26: -57.40 | AW26: -21.63 | AX26: -3.11 | AY26: 29.39 | BB26: 29.02 | BC26: 13.52 | BD26: -29.02 | BE26: -13.52 | BF26: 25.27 | BG26: 37.50 | BI26: 13.30 | BJ26: 7.13 | BK26: -13.30 | BL26: -7.13 | BM26: 40.99 | BN26: 43.89 | BP26: 45.60 | BQ26: 18.67 | BR26: -45.60 | BS26: -18.67 | BT26: 8.69 | BU26: 32.35
A27: 71.66 | B27: 9.48 | C27: 23 | D27: 1.10 | E27: 2.20 | F27: 54.29 | G27: 54.29 | H27: 9.48 | I27: 54.29 | J27: 1.70 | K27: 54.29 | L27: 5.44 | M27: 54.29 | N27: 18.57 | O27: 54.29 | P27: 32.65 | Q27: 54.28814527 | R27: 9.48 | T27: 59.72 | U27: 20.41 | V27: 32.57 | W27: 56.12 | X27: 20.41 | Y27: 32.57 | Z27: 32.57 | AA27: 86.63 | AB27: 54.29 | AC27: 51.02 | AD27: 0 | AF27: 47.77 | AG27: 18.10 | AH27: -47.77 | AI27: -18.10 | AJ27: 6.51 | AK27: 32.92 | AM27: 80.35 | AN27: 24.80 | AO27: -80.35 | AP27: -24.80 | AQ27: -26.06 | AR27: 26.22 | AT27: 60.13 | AU27: 20.97 | AV27: -60.13 | AW27: -20.97 | AX27: -5.84 | AY27: 30.05 | BB27: 30.40 | BC27: 13.10 | BD27: -30.40 | BE27: -13.10 | BF27: 23.89 | BG27: 37.91 | BI27: 13.93 | BJ27: 6.91 | BK27: -13.93 | BL27: -6.91 | BM27: 40.35 | BN27: 44.11 | BP27: 47.77 | BQ27: 18.10 | BR27: -47.77 | BS27: -18.10 | BT27: 6.51 | BU27: 32.92
A28: 74.92 | B28: 9.48 | C28: 24 | D28: 1.15 | E28: 2.30 | F28: 54.29 | G28: 54.29 | H28: 9.48 | I28: 54.29 | J28: 1.70 | K28: 54.29 | L28: 5.44 | M28: 54.29 | N28: 18.57 | O28: 54.29 | P28: 32.65 | Q28: 54.28814527 | R28: 9.48 | T28: 62.43 | U28: 20.41 | V28: 32.57 | W28: 58.67 | X28: 20.41 | Y28: 32.57 | Z28: 32.57 | AA28: 86.63 | AB28: 54.29 | AC28: 51.02 | AD28: 0 | AF28: 49.95 | AG28: 17.57 | AH28: -49.95 | AI28: -17.57 | AJ28: 4.34 | AK28: 33.45 | AM28: 84.00 | AN28: 24.07 | AO28: -84.00 | AP28: -24.07 | AQ28: -29.71 | AR28: 26.94 | AT28: 62.86 | AU28: 20.36 | AV28: -62.86 | AW28: -20.36 | AX28: -8.57 | AY28: 30.66 | BB28: 31.78 | BC28: 12.72 | BD28: -31.78 | BE28: -12.72 | BF28: 22.50 | BG28: 38.30 | BI28: 14.57 | BJ28: 6.71 | BK28: -14.57 | BL28: -6.71 | BM28: 39.72 | BN28: 44.31 | BP28: 49.95 | BQ28: 17.57 | BR28: -49.95 | BS28: -17.57 | BT28: 4.34 | BU28: 33.45
A29: 78.17 | B29: =($F$58/($F29^($D$52)))^(1/$D$53) -> 9.48 | C29: 25 | D29: 1.20 | E29: 2.40 | F29: =IF($D$46*E29>$F$43,$F$43,$D$46*E29) -> 54.29 | G29: 54.29 | H29: 9.48 | I29: 54.29 | J29: 1.70 | K29: 54.29 | L29: 5.44 | M29: 54.29 | N29: 18.57 | O29: 54.29 | P29: 32.65 | Q29: 54.28814527 | R29: 9.48 | T29: 65.15 | U29: 20.41 | V29: 32.57 | W29: 61.22 | X29: 20.41 | Y29: 32.57 | Z29: 32.57 | AA29: 86.63 | AB29: 54.29 | AC29: 51.02 | AD29: 0 | AF29: 52.12 | AG29: 17.08 | AH29: -52.12 | AI29: -17.08 | AJ29: 2.17 | AK29: 33.94 | AM29: 87.65 | AN29: 23.40 | AO29: -87.65 | AP29: -23.40 | AQ29: -33.36 | AR29: 27.62 | AT29: 65.60 | AU29: 19.79 | AV29: -65.60 | AW29: -19.79 | AX29: -11.31 | AY29: 31.23 | BB29: 33.17 | BC29: 12.37 | BD29: -33.17 | BE29: -12.37 | BF29: 21.12 | BG29: 38.65 | BI29: 15.20 | BJ29: 6.52 | BK29: -15.20 | BL29: -6.52 | BM29: 39.09 | BN29: 44.50 | BP29: 52.12 | BQ29: 17.08 | BR29: -52.12 | BS29: -17.08 | BT29: 2.17 | BU29: 33.94
A30: 81.43 | B30: 9.48 | C30: 26 | D30: 1.25 | E30: 2.50 | F30: 54.29 | G30: 54.29 | H30: 9.48 | I30: 54.29 | J30: 1.70 | K30: 54.29 | L30: 5.44 | M30: 54.29 | N30: 18.57 | O30: 54.29 | P30: 32.65 | Q30: 54.28814527 | R30: 9.48 | T30: 67.86 | U30: 20.41 | V30: 32.57 | W30: 63.77 | X30: 20.41 | Y30: 32.57 | Z30: 32.57 | AA30: 86.63 | AB30: 54.29 | AC30: 51.02 | AD30: 0 | AF30: 54.29 | AG30: 16.62 | AH30: -54.29 | AI30: -16.62 | AJ30: 0 | AK30: 34.40 | AM30: 91.30 | AN30: 22.77 | AO30: -91.30 | AP30: -22.77 | AQ30: -37.01 | AR30: 28.24 | AT30: 68.33 | AU30: 19.26 | AV30: -68.33 | AW30: -19.26 | AX30: -14.04 | AY30: 31.76 | BB30: 34.55 | BC30: 12.03 | BD30: -34.55 | BE30: -12.03 | BF30: 19.74 | BG30: 38.98 | BI30: 15.83 | BJ30: 6.34 | BK30: -15.83 | BL30: -6.34 | BM30: 38.45 | BN30: 44.67 | BP30: 54.29 | BQ30: 16.62 | BR30: -54.29 | BS30: -16.62 | BT30: 0 | BU30: 34.40
A31: 84.69 | B31: 9.48 | C31: 27 | D31: 1.30 | E31: 2.60 | F31: 54.29 | G31: 54.29 | H31: 9.48 | I31: 54.29 | J31: 1.70 | K31: 54.29 | L31: 5.44 | M31: 54.29 | N31: 18.57 | O31: 54.29 | P31: 32.65 | Q31: 54.28814527 | R31: 9.48 | T31: 70.57 | U31: 20.41 | V31: 32.57 | W31: 66.32 | X31: 20.41 | Y31: 32.57 | Z31: 32.57 | AA31: 86.63 | AB31: 54.29 | AC31: 51.02 | AD31: 0 | AF31: 56.46 | AG31: 16.19 | AH31: -56.46 | AI31: -16.19 | AJ31: -2.17 | AK31: 34.83 | AM31: 94.95 | AN31: 22.18 | AO31: -94.95 | AP31: -22.18 | AQ31: -40.67 | AR31: 28.83 | AT31: 71.06 | AU31: 18.76 | AV31: -71.06 | AW31: -18.76 | AX31: -16.77 | AY31: 32.26 | BB31: 35.93 | BC31: 11.72 | BD31: -35.93 | BE31: -11.72 | BF31: 18.36 | BG31: 39.29 | BI31: 16.47 | BJ31: 6.18 | BK31: -16.47 | BL31: -6.18 | BM31: 37.82 | BN31: 44.84 | BP31: 56.46 | BQ31: 16.19 | BR31: -56.46 | BS31: -16.19 | BT31: -2.17 | BU31: 34.83
A32: 87.95 | B32: 9.48 | C32: 28 | D32: 1.35 | E32: 2.70 | F32: 54.29 | G32: 54.29 | H32: 9.48 | I32: 54.29 | J32: 1.70 | K32: 54.29 | L32: 5.44 | M32: 54.29 | N32: 18.57 | O32: 54.29 | P32: 32.65 | Q32: 54.28814527 | R32: 9.48 | T32: 73.29 | U32: 20.41 | V32: 32.57 | W32: 68.87 | X32: 20.41 | Y32: 32.57 | Z32: 32.57 | AA32: 86.63 | AB32: 54.29 | AC32: 51.02 | AD32: 0 | AF32: 58.63 | AG32: 15.79 | AH32: =AF32*-1 -> -58.63 | AI32: -15.79 | AJ32: -4.34 | AK32: 35.23 | AM32: 98.61 | AN32: 21.63 | AO32: =AM32*-1 -> -98.61 | AP32: -21.63 | AQ32: -44.32 | AR32: 29.38 | AT32: 73.79 | AU32: 18.29 | AV32: =AT32*-1 -> -73.79 | AW32: -18.29 | AX32: -19.51 | AY32: 32.72 | BB32: 37.31 | BC32: 11.43 | BD32: =BB32*-1 -> -37.31 | BE32: -11.43 | BF32: 16.98 | BG32: 39.59 | BI32: 17.10 | BJ32: 6.03 | BK32: =BI32*-1 -> -17.10 | BL32: -6.03 | BM32: 37.19 | BN32: 44.99 | BP32: 58.63 | BQ32: 15.79 | BR32: =BP32*-1 -> -58.63 | BS32: -15.79 | BT32: -4.34 | BU32: 35.23
A33: 91.20 | B33: 9.48 | C33: 29 | D33: 1.40 | E33: 2.80 | F33: 54.29 | G33: 54.29 | H33: 9.48 | I33: 54.29 | J33: 1.70 | K33: 54.29 | L33: 5.44 | M33: 54.29 | N33: 18.57 | O33: 54.29 | P33: 32.65 | Q33: 54.28814527 | R33: 9.48 | T33: 76.00 | U33: 20.41 | V33: 32.57 | W33: 71.42 | X33: 20.41 | Y33: 32.57 | Z33: 32.57 | AA33: 86.63 | AB33: 54.29 | AC33: 51.02 | AD33: 0 | AF33: 60.80 | AG33: 15.41 | AH33: -60.80 | AI33: -15.41 | AJ33: -6.51 | AK33: 35.61 | AM33: 102.26 | AN33: 21.12 | AO33: -102.26 | AP33: -21.12 | AQ33: -47.97 | AR33: 29.90 | AT33: 76.53 | AU33: 17.85 | AV33: -76.53 | AW33: -17.85 | AX33: -22.24 | AY33: 33.16 | BB33: 38.69 | BC33: 11.16 | BD33: -38.69 | BE33: -11.16 | BF33: 15.60 | BG33: 39.86 | BI33: 17.73 | BJ33: 5.88 | BK33: -17.73 | BL33: -5.88 | BM33: 36.55 | BN33: 45.13 | BP33: 60.80 | BQ33: 15.41 | BR33: -60.80 | BS33: -15.41 | BT33: -6.51 | BU33: 35.61
A34: 94.46 | B34: 9.48 | C34: 30 | D34: 1.45 | E34: 2.90 | F34: 54.29 | G34: 54.29 | H34: 9.48 | I34: 54.29 | J34: 1.70 | K34: 54.29 | L34: 5.44 | M34: 54.29 | N34: 18.57 | O34: 54.29 | P34: 32.65 | Q34: 54.28814527 | R34: 9.48 | T34: 78.72 | U34: 20.41 | V34: 32.57 | W34: 73.97 | X34: 20.41 | Y34: 32.57 | Z34: 32.57 | AA34: 86.63 | AB34: 54.29 | AC34: 51.02 | AD34: 0 | AF34: 62.97 | AG34: 15.05 | AH34: -62.97 | AI34: -15.05 | AJ34: -8.69 | AK34: 35.96 | AM34: 105.91 | AN34: 20.63 | AO34: -105.91 | AP34: -20.63 | AQ34: -51.62 | AR34: 30.39 | AT34: 79.26 | AU34: 17.44 | AV34: -79.26 | AW34: -17.44 | AX34: -24.97 | AY34: 33.58 | BB34: 40.07 | BC34: 10.90 | BD34: -40.07 | BE34: -10.90 | BF34: 14.21 | BG34: 40.12 | BI34: 18.37 | BJ34: 5.75 | BK34: -18.37 | BL34: -5.75 | BM34: 35.92 | BN34: 45.27 | BP34: 62.97 | BQ34: 15.05 | BR34: -62.97 | BS34: -15.05 | BT34: -8.69 | BU34: 35.96
A35: 97.72 | B35: 9.48 | C35: 31 | D35: 1.50 | E35: 3.00 | F35: 54.29 | G35: 54.29 | H35: 9.48 | I35: 54.29 | J35: 1.70 | K35: 54.29 | L35: 5.44 | M35: 54.29 | N35: 18.57 | O35: 54.29 | P35: 32.65 | Q35: 54.28814527 | R35: 9.48 | T35: 81.43 | U35: 20.41 | V35: 32.57 | W35: 76.53 | X35: 20.41 | Y35: 32.57 | Z35: 32.57 | AA35: 86.63 | AB35: 54.29 | AC35: 51.02 | AD35: 0 | AF35: 65.15 | AG35: 14.72 | AH35: -65.15 | AI35: -14.72 | AJ35: -10.86 | AK35: 36.30 | AM35: 109.56 | AN35: 20.17 | AO35: -109.56 | AP35: -20.17 | AQ35: -55.28 | AR35: 30.85 | AT35: 81.99 | AU35: 17.05 | AV35: -81.99 | AW35: -17.05 | AX35: -27.71 | AY35: 33.97 | BB35: 41.46 | BC35: 10.66 | BD35: -41.46 | BE35: -10.66 | BF35: 12.83 | BG35: 40.36 | BI35: 19.00 | BJ35: 5.62 | BK35: -19.00 | BL35: -5.62 | BM35: 35.29 | BN35: 45.40 | BP35: 65.15 | BQ35: 14.72 | BR35: -65.15 | BS35: -14.72 | BT35: -10.86 | BU35: 36.30
A36: 100.98 | B36: 9.48 | C36: 32 | D36: 1.55 | E36: 3.10 | F36: 54.29 | G36: 54.29 | H36: 9.48 | I36: 54.29 | J36: 1.70 | K36: 54.29 | L36: 5.44 | M36: 54.29 | N36: 18.57 | O36: 54.29 | P36: 32.65 | Q36: 54.28814527 | R36: 9.48 | T36: 84.15 | U36: 20.41 | V36: 32.57 | W36: 79.08 | X36: 20.41 | Y36: 32.57 | Z36: 32.57 | AA36: 86.63 | AB36: 54.29 | AC36: 51.02 | AD36: 0 | AF36: 67.32 | AG36: 14.40 | AH36: -67.32 | AI36: -14.40 | AJ36: -13.03 | AK36: 36.62 | AM36: 113.22 | AN36: 19.73 | AO36: -113.22 | AP36: -19.73 | AQ36: -58.93 | AR36: 31.29 | AT36: 84.73 | AU36: 16.68 | AV36: -84.73 | AW36: -16.68 | AX36: -30.44 | AY36: 34.33 | BB36: 42.84 | BC36: 10.43 | BD36: -42.84 | BE36: -10.43 | BF36: 11.45 | BG36: 40.59 | BI36: 19.63 | BJ36: 5.50 | BK36: -19.63 | BL36: -5.50 | BM36: 34.65 | BN36: 45.52 | BP36: 67.32 | BQ36: 14.40 | BR36: -67.32 | BS36: -14.40 | BT36: -13.03 | BU36: 36.62
A37: 104.23 | B37: 9.48 | C37: 33 | D37: 1.60 | E37: 3.20 | F37: 54.29 | G37: 54.29 | H37: 9.48 | I37: 54.29 | J37: 1.70 | K37: 54.29 | L37: 5.44 | M37: 54.29 | N37: 18.57 | O37: 54.29 | P37: 32.65 | Q37: 54.28814527 | R37: 9.48 | T37: 86.86 | U37: 20.41 | V37: 32.57 | W37: 81.63 | X37: 20.41 | Y37: 32.57 | Z37: 32.57 | AA37: 86.63 | AB37: 54.29 | AC37: 51.02 | AD37: 0 | AF37: 69.49 | AG37: 14.10 | AH37: -69.49 | AI37: -14.10 | AJ37: -15.20 | AK37: 36.92 | AM37: 116.87 | AN37: 19.32 | AO37: -116.87 | AP37: -19.32 | AQ37: -62.58 | AR37: 31.70 | AT37: 87.46 | AU37: 16.33 | AV37: -87.46 | AW37: -16.33 | AX37: -33.17 | AY37: 34.68 | BB37: 44.22 | BC37: 10.21 | BD37: -44.22 | BE37: -10.21 | BF37: 10.07 | BG37: 40.81 | BI37: 20.27 | BJ37: 5.38 | BK37: -20.27 | BL37: -5.38 | BM37: 34.02 | BN37: 45.63 | BP37: 69.49 | BQ37: 14.10 | BR37: -69.49 | BS37: -14.10 | BT37: -15.20 | BU37: 36.92
A38: 107.49 | B38: 9.48 | C38: 34 | D38: 1.65 | E38: 3.30 | F38: 54.29 | G38: 54.29 | H38: 9.48 | I38: 54.29 | J38: 1.70 | K38: 54.29 | L38: 5.44 | M38: 54.29 | N38: 18.57 | O38: 54.29 | P38: 32.65 | Q38: 54.28814527 | R38: 9.48 | T38: 89.58 | U38: 20.41 | V38: 32.57 | W38: 84.18 | X38: 20.41 | Y38: 32.57 | Z38: 32.57 | AA38: 86.63 | AB38: 54.29 | AC38: 51.02 | AD38: 0 | AF38: 71.66 | AG38: 13.81 | AH38: -71.66 | AI38: -13.81 | AJ38: -17.37 | AK38: 37.21 | AM38: 120.52 | AN38: 18.92 | AO38: -120.52 | AP38: -18.92 | AQ38: -66.23 | AR38: 32.09 | AT38: 90.19 | AU38: 16.00 | AV38: -90.19 | AW38: -16.00 | AX38: -35.91 | AY38: 35.02 | BB38: 45.60 | BC38: 10.00 | BD38: -45.60 | BE38: -10.00 | BF38: 8.69 | BG38: 41.02 | BI38: 20.90 | BJ38: 5.27 | BK38: -20.90 | BL38: -5.27 | BM38: 33.39 | BN38: 45.74 | BP38: 71.66 | BQ38: 13.81 | BR38: -71.66 | BS38: -13.81 | BT38: -17.37 | BU38: 37.21
A39: 110.75 | B39: 9.48 | C39: 35 | D39: 1.70 | E39: 3.40 | F39: 54.29 | G39: 54.29 | H39: 9.48 | I39: 54.29 | J39: 1.70 | K39: 54.29 | L39: 5.44 | M39: 54.29 | N39: 18.57 | O39: 54.29 | P39: 32.65 | Q39: 54.28814527 | R39: 9.48 | T39: 92.29 | U39: 20.41 | V39: 32.57 | W39: 86.73 | X39: 20.41 | Y39: 32.57 | Z39: 32.57 | AA39: 86.63 | AB39: 54.29 | AC39: 51.02 | AD39: 0 | AF39: 73.83 | AG39: 13.54 | AH39: -73.83 | AI39: -13.54 | AJ39: -19.54 | AK39: 37.48 | AM39: 124.17 | AN39: 18.55 | AO39: -124.17 | AP39: -18.55 | AQ39: -69.88 | AR39: 32.47 | AT39: 92.93 | AU39: 15.69 | AV39: -92.93 | AW39: -15.69 | AX39: -38.64 | AY39: 35.33 | BB39: 46.98 | BC39: 9.80 | BD39: -46.98 | BE39: -9.80 | BF39: 7.30 | BG39: 41.21 | BI39: =$E39*$BC$59 -> 21.53 | BJ39: 5.17 | BK39: -21.53 | BL39: -5.17 | BM39: 32.75 | BN39: 45.85 | BP39: 73.83 | BQ39: 13.54 | BR39: -73.83 | BS39: -13.54 | BT39: -19.54 | BU39: 37.48
A40: 54.29 | B40: =($F$58/($F40^($D$52)))^(1/$D$53) -> 9.48 | C40: 36 | D40: 1.75 | E40: =F43/D46 -> 1.67 | F40: 54.29 | G40: 54.29 | H40: 9.48 | I40: 54.29 | J40: 1.70 | K40: 54.29 | L40: 5.44 | M40: 54.29 | N40: 18.57 | O40: 54.29 | P40: 32.65 | Q40: 54.28814527 | R40: 9.48 | T40: 95.00 | U40: 20.41 | V40: 32.57 | W40: 89.28 | X40: 20.41 | Y40: 32.57 | Z40: 32.57 | AA40: 86.63 | AB40: 54.29 | AC40: 51.02 | AD40: 0 | AF40: 36.19 | AG40: 21.78 | AH40: -36.19 | AI40: -21.78 | AJ40: =IF((AH40+($AF$15*2)+($D$46-$E$46))>AJ39,AJ39-0.001,(AH40+($AF$15*2)+($D$46-$E$46))) -> -19.54 | AK40: =IF((AI40+($E$47*2)+($D$47-$E$47))<AK39,AK39+0.001,(AI40+($E$47*2)+($D$47-$E$47))) -> 37.48 | AM40: 60.87 | AN40: 29.84 | AO40: -60.87 | AP40: -29.84 | AQ40: =IF((AO40+($AM$15*2)+($AL$48-$AM$48))>AQ39,AQ39-0.001,(AO40+($AM$15*2)+($AL$48-$AM$48))) -> -69.88 | AR40: =IF((AP40+($AN$15*2)+($AL$49-$AM$49))<AR39,AR39+0.001,(AP40+($AN$15*2)+($AL$49-$AM$49))) -> 32.47 | AT40: 45.55 | AU40: 25.23 | AV40: -45.55 | AW40: -25.23 | AX40: =IF((AV40+($AT$15*2)+($AL$59-$AM$59))>AX39,AX39-0.001,(AV40+($AT$15*2)+($AL$59-$AM$59))) -> -38.64 | AY40: =IF((AW40+($AU$15*2)+($AL$60-$AM$60))<AY39,AY39+0.001,(AW40+($AU$15*2)+($AL$60-$AM$60))) -> 35.33 | BB40: 23.03 | BC40: 15.77 | BD40: -23.03 | BE40: -15.77 | BF40: =IF((BD40+($BB$15*2)+($BB$48-$BC$48))>BF39,BF39-0.001,(BD40+($BB$15*2)+($BB$48-$BC$48))) -> 7.30 | BG40: =IF((BE40+($BC$15*2)+($BB$49-$BC$49))<BG39,BG39+0.001,(BE40+($BC$15*2)+($BB$49-$BC$49))) -> 41.21 | BI40: =$E40*$BC$59 -> 10.56 | BJ40: 8.31 | BK40: -10.56 | BL40: -8.31 | BM40: =IF((BK40+($BI$15*2)+($BB$59-$BC$59))>BM39,BM39-0.001,(BK40+($BI$15*2)+($BB$59-$BC$59))) -> 32.75 | BN40: =IF((BL40+($BJ$15*2)+($BB$60-$BC$60))<BN39,BN39+0.001,(BL40+($BJ$15*2)+($BB$60-$BC$60))) -> 45.85 | BP40: 36.19 | BQ40: 21.78 | BR40: -36.19 | BS40: -21.78 | BT40: =IF((BR40+($BP$15*2)+($BK$46-$BL$46))>BT39,BT39-0.001,(BR40+($BP$15*2)+($BK$46-$BL$46))) -> -19.54 | BU40: =IF((BS40+($BQ$15*2)+($BK$47-$BL$47))<BU39,BU39+0.001,(BS40+($BQ$15*2)+($BK$47-$BL$47))) -> 37.48
C41: original | H41: menos 2 | N41: más 1
D42: Individuo A | E42: Individuo B | F42: Total | I42: Individuo A | J42: Individuo B | K42: Total | O42: Individuo A | P42: Individuo B | Q42: Total
C43: Dotación Bien 1 | D43: =D46 -> 32.57288716 | E43: =E46 -> 21.71525811 | F43: =E43+D43 -> 54.28814527 | H43: Dotación Bien 1 | I43: =D43*0.5 -> 16.28644358 | J43: =K43-I43 -> 38.00170169 | K43: =F43 -> 54.28814527 | N43: Dotación Bien 1 | O43: =((F43-D43)*0.2)+D43 -> 36.91593878 | P43: =Q43-O43 -> 17.37220649 | Q43: =K43 -> 54.28814527 | AK43: MENOS 2 | BA43: MÁS 1
C44: Dotación Bien 2 | D44: =D47 -> 20.40679201 | E44: =E47 -> 30.61018802 | F44: =E44+D44 -> 51.01698003 | H44: Dotación Bien 2 | I44: =D44*0.5 -> 10.20339601 | J44: =K44-I44 -> 40.81358402 | K44: =F44 -> 51.01698003 | N44: Dotación Bien 2 | O44: =((F44-D44)*0.4)+D44 -> 32.65086722 | P44: =Q44-O44 -> 18.36611281 | Q44: =K44 -> 51.01698003 | AL44: Individuo A | AM44: Individuo B | AN44: Total | BB44: Individuo A | BC44: Individuo B | BD44: Total | BJ44: DOTACIÓN
C45: UTILIDAD | D45: =D43^($D$52)*D44^($D$53) -> 27.01616177 | E45: =E43^($E$54)*E44^($E$55) -> 26.68244338 | AK45: Dotación Bien 1 | AL45: =I43 -> 16.28644358 | AM45: 38.00170169 | AN45: 54.28814527 | BA45: Dotación Bien 1 | BB45: =O43 -> 36.91593878 | BC45: 17.37220649 | BD45: 54.28814527 | BK45: Individuo A | BL45: Individuo B | BM45: Total
C46: Demanda Bruta Bien 1 | D46: =(D52/(D52+E54))*D116 -> 32.57288716 | E46: =(E54/(D52+E54))*D116 -> 21.71525811 | F46: =E46+D46 -> 54.28814527 | H46: Demanda Bruta Bien 1 | I46: =($D$52*I43)+(J49*I44*$D$52) -> 17.76702936 | J46: =($E$54*J43)+($E$54*J49*J44) -> 36.52111591 | K46: =J46+I46 -> 54.28814527 | N46: Demanda Bruta Bien 1 | O46: =($D$52*O43)+(P49*O44*$D$52) -> 40.46934466 | P46: =($E$54*P43)+($E$54*P49*P44) -> 13.81880061 | Q46: =P46+O46 -> 54.28814527 | R46: =($D$52*((O47/O46)^($D$53)))/($D$53*((O46/O47)^($D$52))) -> 1.069364307 | AK46: Dotación Bien 2 | AL46: 10.20339601 | AM46: 40.81358402 | AN46: 51.01698003 | BA46: Dotación Bien 2 | BB46: 32.65086722 | BC46: 18.36611281 | BD46: 51.01698003 | BJ46: Dotación Bien 1 | BK46: =D43 -> 32.57288716 | BL46: 21.71525811 | BM46: 54.28814527
C47: Demanda Bruta Bien 2 | D47: =(D53/(D53+E55))*E116 -> 20.40679201 | E47: =(E55/(D53+E55))*E116 -> 30.61018802 | F47: =E47+D47 -> 51.01698003 | H47: Demanda Bruta Bien 2 | I47: =($D$53*J50*I43)+($D$53*I44) -> 9.069685338 | J47: =($E$55*J50*J43)+($E$55*J44) -> 41.94729469 | K47: =J47+I47 -> 51.01698003 | N47: Demanda Bruta Bien 2 | O47: =($D$53*P50*O43)+($D$53*O44) -> 28.85098181 | P47: =($E$55*P50*P43)+($E$55*P44) -> 22.16599822 | Q47: =P47+O47 -> 51.01698003 | R47: =($E$54*((P47/P46)^($E$55)))/($E$55*((P46/P47)^($E$54))) -> 1.069364307 | AK47: UTILIDAD | AL47: =AL45^($D$52)*AL46^($D$53) -> 13.50808088 | AM47: =AM45^($E$54)*AM46^($E$55) -> 39.66468942 | BA47: UTILIDAD | BB47: =BB45^($D$52)*BB46^($D$53) -> 35.1468363 | BC47: =BC45^($E$54)*BC46^($E$55) -> 17.96190279 | BJ47: Dotación Bien 2 | BK47: 20.40679201 | BL47: 30.61018802 | BM47: 51.01698003
C48: UTILIDAD | D48: =D46^($D$52)*D47^($D$53) -> 27.01616177 | E48: =E46^($E$54)*E47^($E$55) -> 26.68244338 | AK48: Demanda Bruta Bien 1 | AL48: =I46 -> 17.76702936 | AM48: 36.52111591 | AN48: 54.28814527 | BA48: Demanda Bruta Bien 1 | BB48: =O46 -> 40.46934466 | BC48: 13.81880061 | BD48: 54.28814527 | BJ48: UTILIDAD | BK48: =BK46^($D$52)*BK47^($D$53) -> 27.01616177 | BL48: =BL46^($E$54)*BL47^($E$55) -> 26.68244338
C49: Demanda Neta Bien 1 | D49: =D46-D43 -> 0 | E49: =D47-D44 -> 0 | H49: P2/P1 | J49: =(($D$53*I43)+($E$55*J43))/(($D$52*I44)+($E$54*J44)) -> 1.305964408 | K49: k inicial | N49: P2/P1 | P49: =(($D$53*O43)+($E$55*P43))/(($D$52*O44)+($E$54*P44)) -> 0.935135008 | Q49: k inicial | AK49: Demanda Bruta Bien 2 | AL49: 9.069685338 | AM49: 41.94729469 | AN49: 51.01698003 | BA49: Demanda Bruta Bien 2 | BB49: 28.85098181 | BC49: 22.16599822 | BD49: 51.01698003
C50: Demanda Neta Bien 2 | D50: =E46-E43 -> 0 | E50: =E47-E44 -> 0 | H50: P1/P2 | J50: =1/J49 -> 0.7657176521 | K50: =(I46^($D$52))*(I47^($D$53)) -> 13.57706134 | N50: P1/P2 | P50: =1/P49 -> 1.069364307 | Q50: =(O46^($D$52))*(O47^($D$53)) -> 35.34597303 | AK50: UTILIDAD | AL50: =AL48^($D$52)*AL49^($D$53) -> 13.57706134 | AM50: =AM48^($E$54)*AM49^($E$55) -> 39.68624324 | BA50: UTILIDAD | BB50: =BB48^($D$52)*BB49^($D$53) -> 35.34597303 | BC50: =BC48^($E$54)*BC49^($E$55) -> 18.3484979
C51: RMT | D51: =SLOPE(E65:K65,E64:K64) -> 0.9197484126 | AK51: P2/P1 | AM51: =J49 -> 1.305964408 | AN51: =K49 -> k inicial | BA51: P2/P1 | BC51: =P49 -> 0.935135008 | BD51: =Q49 -> k inicial
C52: a | D52: =EOC2descentral!C38 -> 0.6 | H52: menos 1 | N52: más 2 | AK52: P1/P2 | AM52: =J50 -> 0.7657176521 | AN52: =K50 -> 13.57706134 | BA52: P1/P2 | BC52: =P50 -> 1.069364307 | BD52: =Q50 -> 35.34597303
C53: 1-a | D53: =1-D52 -> 0.4 | I53: Individuo A | J53: Individuo B | K53: Total | O53: Individuo A | P53: Individuo B | Q53: Total
C54: b | E54: =EOC2descentral!D40 -> 0.4 | H54: Dotación Bien 1 | I54: =D43*0.8 -> 26.05830973 | J54: =K54-I54 -> 28.22983554 | K54: =K43 -> 54.28814527 | N54: Dotación Bien 1 | O54: =((F43-D43)*0.5)+D43 -> 43.43051622 | P54: =Q54-O54 -> 10.85762905 | Q54: =Q43 -> 54.28814527 | AK54: MENOS 1 | BA54: MÁS 2
C55: 1-b | E55: =1-E54 -> 0.6 | H55: Dotación Bien 2 | I55: =D44*0.8 -> 16.32543361 | J55: =K55-I55 -> 34.69154642 | K55: =K44 -> 51.01698003 | N55: Dotación Bien 2 | O55: =((F44-D44)*0.8)+D44 -> 44.89494242 | P55: =Q55-O55 -> 6.122037603 | Q55: =Q44 -> 51.01698003 | AL55: Individuo A | AM55: Individuo B | AN55: Total | BB55: Individuo A | BC55: Individuo B | BD55: Total
AK56: Dotación Bien 1 | AL56: =I54 -> 26.05830973 | AM56: 28.22983554 | AN56: 54.28814527 | BA56: Dotación Bien 1 | BB56: =O54 -> 43.43051622 | BC56: 10.85762905 | BD56: 54.28814527
C57: P2/P1 | E57: =((D53*D43)+(E55*E43))/((D52*D44)+(E54*E44)) -> 1.064119147 | F57: k inicial | H57: Demanda Bruta Bien 1 | I57: =($D$52*I54)+(J60*I55*$D$52) -> 26.95687213 | J57: =($E$54*J54)+($E$54*J60*J55) -> 27.33127314 | K57: =J57+I57 -> 54.28814527 | N57: Demanda Bruta Bien 1 | O57: =($D$52*O54)+(P60*O55*$D$52) -> 47.95452832 | P57: =($E$54*P54)+($E$54*P60*P55) -> 6.333616948 | Q57: =P57+O57 -> 54.28814527 | R57: =($D$52*((O58/O57)^($D$53)))/($D$53*((O57/O58)^($D$52))) -> 1.230210839 | AK57: Dotación Bien 2 | AL57: 16.32543361 | AM57: 34.69154642 | AN57: 51.01698003 | BA57: Dotación Bien 2 | BB57: 44.89494242 | BC57: 6.122037603 | BD57: 51.01698003
C58: P1/P2 | E58: =1/E57 -> 0.9397443912 | F58: =(D46^($D$52))*(D47^($D$53)) -> 27.01616177 | H58: Demanda Bruta Bien 2 | I58: =($D$53*J61*I54)+($D$53*I55) -> 15.54803201 | J58: =($E$55*J61*J54)+($E$55*J55) -> 35.46894802 | K58: =J58+I58 -> 51.01698003 | N58: Demanda Bruta Bien 2 | O58: =($D$53*P61*O54)+($D$53*O55) -> 39.32945369 | P58: =($E$55*P61*P54)+($E$55*P55) -> 11.68752633 | Q58: =P58+O58 -> 51.01698003 | R58: =($E$54*((P58/P57)^($E$55)))/($E$55*((P57/P58)^($E$54))) -> 1.230210839 | AK58: UTILIDAD | AL58: =AL56^($D$52)*AL57^($D$53) -> 21.61292941 | AM58: =AM56^($E$54)*AM57^($E$55) -> 31.94607706 | BA58: UTILIDAD | BB58: =BB56^($D$52)*BB57^($D$53) -> 44.01046553 | BC58: =BC56^($E$54)*BC57^($E$55) -> 7.698951712
AK59: Demanda Bruta Bien 1 | AL59: =($D$52*AL56)+(AM62*AL57*$D$52) -> 26.95687213 | AM59: =J57 -> 27.33127314 | AN59: =K57 -> 54.28814527 | BA59: Demanda Bruta Bien 1 | BB59: =O57 -> 47.95452832 | BC59: 6.333616948 | BD59: 54.28814527
C60: RMS | D60: =($D$52*((D47/D46)^($D$53)))/($D$53*((D46/D47)^($D$52))) -> 0.9397443912 | E60: =($E$54*((E47/E46)^($E$55)))/($E$55*((E46/E47)^($E$54))) -> 0.9397443912 | H60: P2/P1 | J60: =(($D$53*I54)+($E$55*J54))/(($D$52*I55)+($E$54*J55)) -> 1.155853556 | K60: k inicial | N60: P2/P1 | P60: =(($D$53*O54)+($E$55*P54))/(($D$52*O55)+($E$54*P55)) -> 0.8128687929 | Q60: k inicial | AK60: Demanda Bruta Bien 2 | AL60: =($D$53*AM63*AL56)+($D$53*AL57) -> 15.54803201 | AM60: =J58 -> 35.46894802 | AN60: =K58 -> 51.01698003 | BA60: Demanda Bruta Bien 2 | BB60: 39.32945369 | BC60: 11.68752633 | BD60: 51.01698003
H61: P1/P2 | J61: =1/J60 -> 0.865161503 | K61: =(I57^($D$52))*(I58^($D$53)) -> 21.63076453 | N61: P1/P2 | P61: =1/P60 -> 1.230210839 | Q61: =(O57^($D$52))*(O58^($D$53)) -> 44.29808373 | AK61: UTILIDAD | AL61: =AL59^($D$52)*AL60^($D$53) -> 21.63076453 | AM61: =AM59^($E$54)*AM60^($E$55) -> 31.95750971 | BA61: UTILIDAD | BB61: =BB59^($D$52)*BB60^($D$53) -> 44.29808373 | BC61: =BC59^($E$54)*BC60^($E$55) -> 9.147328568
AK62: P2/P1 | AM62: =J60 -> 1.155853556 | AN62: =K60 -> k inicial | BA62: P2/P1 | BC62: =P60 -> 0.8128687929 | BD62: =Q60 -> k inicial
D63: curva de tranasformación | E63: Inicio | F63: menos 2 | G63: menos 1 | H63: original | I63: más 1 | J63: más 2 | K63: final | AK63: P1/P2 | AM63: =J61 -> 0.865161503 | AN63: =K61 -> 21.63076453 | BA63: P1/P2 | BC63: =P61 -> 1.230210839 | BD63: =Q61 -> 44.29808373
D64: x1 | E64: 0 | F64: =I46 -> 17.76702936 | G64: =I57 -> 26.95687213 | H64: =D46 -> 32.57288716 | I64: =O46 -> 40.46934466 | J64: =O57 -> 47.95452832 | K64: =F43 -> 54.28814527
D65: x2 | E65: 0 | F65: =I47 -> 9.069685338 | G65: =I58 -> 15.54803201 | H65: =D47 -> 20.40679201 | I65: =O47 -> 28.85098181 | J65: =O58 -> 39.32945369 | K65: =F44 -> 51.01698003
Q68: =IF(($D$113/($F73^($D$120)))^(1/$D$121)>$F$112,$Q$70,F73) -> 44.08908298
C69: FRONTERA DE POSIBILIDADES DE PRODUCCIÓN
G70: =POWER((F126/(F112^D121)),1/D120) -> 43.71369344 | H70: =($F$126/($G70^($D$120)))^(1/$D$121) -> 90 | I70: =POWER((K118/(K112^D121)),1/D120) -> 16.55685384 | J70: =($K$118/($I70^($D$120)))^(1/$D$121) -> 90 | K70: =POWER((K129/(K123^D121)),1/D120) -> 33.06702192 | L70: =($K$129/($K70^($D$120)))^(1/$D$121) -> 90 | M70: =POWER((Q118/(Q112^D121)),1/D120) -> 68.13930614 | N70: =($Q$118/($M70^($D$120)))^(1/$D$121) -> 90 | O70: =POWER((Q129/(Q123^D121)),1/D120) -> 90.48026202 | P70: =($Q$129/($O70^($D$120)))^(1/$D$121) -> 90 | Q70: =POWER((D113/(F112^D121)),1/D120) -> 44.08908298 | R70: =($D$113/($Q70^($D$120)))^(1/$D$121) -> 90 | AA70: ORIGINAL | AH70: MENOS 2 | AO70: MENOS 1 | AW70: MAS 1 | BD70: MAS 2 | BK70: DOTACIÓN
A71: Original | B71: Original | F71: Original | H71: Original | I71: menos 2 | J71: menos 2 | K71: menos 1 | L71: menos 1 | M71: mas 1 | N71: mas 1 | O71: masn2 | P71: masn2 | T71: DOTACIÓN | X71: OPTIMO | AB71: CAJA | AF71: ORIGINAL | AG71: ORIGINAL | AH71: NEGATIVO | AI71: NEGATIVO | AJ71: TRANSFORMADA | AM71: ORIGINAL | AN71: ORIGINAL | AO71: NEGATIVO | AP71: NEGATIVO | AQ71: TRANSFORMADA | AT71: ORIGINAL | AU71: ORIGINAL | AV71: NEGATIVO | AW71: NEGATIVO | AX71: TRANSFORMADA | BB71: ORIGINAL | BC71: ORIGINAL | BD71: NEGATIVO | BE71: NEGATIVO | BF71: TRANSFORMADA | BI71: ORIGINAL | BJ71: ORIGINAL | BK71: NEGATIVO | BL71: NEGATIVO | BM71: TRANSFORMADA | BP71: ORIGINAL | BQ71: ORIGINAL | BR71: NEGATIVO | BS71: NEGATIVO | BT71: TRANSFORMADA
A72: x1 | B72: x2 | C72: Unidades | D72: ponderador | F72: x1 | G72: x1 | H72: x2 | I72: x1 | J72: x2 | K72: x1 | L72: x2 | M72: x1 | N72: x2 | O72: x1 | P72: x2 | Q72: DOTA | R72: DOTA | T72: < | V72: x2line | X72: x1linedotación | Z72: x2line | AF72: x1 | AG72: x2 | AH72: MENOS X1 | AI72: MENOS X2 | AJ72: x1 | AK72: x2 | AM72: x1 | AN72: x2 | AO72: MENOS X1 | AP72: MENOS X2 | AQ72: x1 | AR72: x2 | AT72: x1 | AU72: x2 | AV72: MENOS X1 | AW72: MENOS X2 | AX72: x1 | AY72: x2 | BB72: x1 | BC72: x2 | BD72: MENOS X1 | BE72: MENOS X2 | BF72: x1 | BG72: x2 | BI72: x1 | BJ72: x2 | BK72: MENOS X1 | BL72: MENOS X2 | BM72: x1 | BN72: x2 | BP72: x1 | BQ72: x2 | BR72: MENOS X1 | BS72: MENOS X2 | BT72: x1 | BU72: x2
A73: =$D$114*E73 -> 0.70 | B73: =($F$126/($A73^($D$120)))^(1/$D$121) -> 1,392,476.65 | C73: 1 | D73: 0 | E73: 0.01 | F73: =IF($D$114*E73>$F$111,$F$111,$D$114*E73) -> 0.70 | G73: =IF(($F$126/($F73^($D$120)))^(1/$D$121)>$F$112,$G$70,$F73) -> 43.71 | H73: =($F$126/($G73^($D$120)))^(1/$D$121) -> 90.00 | I73: =IF(($K$118/($F73^($D$120)))^(1/$D$121)>$F$112,$I$70,F73) -> 16.56 | J73: =($K$118/($I73^($D$120)))^(1/$D$121) -> 90.00 | K73: =IF(($K$129/($F73^($D$120)))^(1/$D$121)>$F$112,$K$70,F73) -> 33.07 | L73: =($K$129/($K73^($D$120)))^(1/$D$121) -> 90.00 | M73: =IF(($Q$118/($F73^($D$120)))^(1/$D$121)>$F$112,$M$70,F73) -> 68.14 | N73: =($Q$118/($M73^($D$120)))^(1/$D$121) -> 90.00 | O73: =IF(($Q$129/($F73^($D$120)))^(1/$D$121)>$F$112,$O$70,F73) -> 90.48 | P73: =($Q$129/($O73^($D$120)))^(1/$D$121) -> 90.00 | S73: =IF(B73>$F$112,1,0) -> 1 | T73: =D73*$F$111 -> 0 | U73: =$D$112 -> 20.00 | V73: =$D$111 -> 84.00 | W73: =$F$112*D73 -> 0 | X73: =$D$115 -> 30.00 | Y73: =$D$114 -> 70.00 | Z73: =$D$111 -> 84.00 | AA73: =$F$112*J73 -> 8,100.00 | AB73: =$F$111 -> 110.00 | AC73: =$F$112 -> 90.00 | AD73: 0 | AF73: =$E73*$E$114 -> 0.40 | AG73: =(($E$116)/(AF73^($E$122)))^(1/$E$123) -> 1,292.66 | AH73: =AF73*-1 -> -0.40 | AI73: =AG73*-1 -> -1,292.66 | AJ73: =AH73+($AF$83*2)+($D$114-$E$114) -> 109.60 | AK73: =AI73+($E$115*2)+($D$115-$E$115) -> -1,202.66 | AM73: =$E73*$AM$116 -> 0.71 | AN73: =(($AM$118)/(AM73^($E$122)))^(1/$E$123) -> 1,676.10 | AO73: =AM73*-1 -> -0.71 | AP73: =AN73*-1 -> -1,676.10 | AQ73: =AO73+($AM$83*2)+($AL$116-$AM$116) -> 109.29 | AR73: =AP73+($AN$83*2)+($AL$117-$AM$117) -> -1,586.10 | AT73: =$E73*$AM$127 -> 0.50 | AU73: =(($AM$129)/(AT73^($E$122)))^(1/$E$123) -> 1,449.00 | AV73: =AT73*-1 -> -0.50 | AW73: =AU73*-1 -> -1,449.00 | AX73: =AV73+($AT$83*2)+($AL$127-$AM$127) -> 109.50 | AY73: =AW73+($AU$83*2)+($AL$128-$AM$128) -> -1,359.00 | BB73: =$E73*$BC$116 -> 0.21 | BC73: =(($BC$118)/(BB73^($E$122)))^(1/$E$123) -> 888.26 | BD73: =BB73*-1 -> -0.21 | BE73: =BC73*-1 -> -888.26 | BF73: =BD73+($BB$83*2)+($BB$116-$BC$116) -> 109.79 | BG73: =BE73+($BC$83*2)+($BB$117-$BC$117) -> -798.26 | BI73: =$E73*$BC$127 -> 0.09 | BJ73: =(($BC$129)/(BI73^($E$122)))^(1/$E$123) -> 448.75 | BK73: =BI73*-1 -> -0.09 | BL73: =BJ73*-1 -> -448.75 | BM73: =BK73+($BI$83*2)+($BB$127-$BC$127) -> 109.91 | BN73: =BL73+($BJ$83*2)+($BB$128-$BC$128) -> -358.75 | BP73: =$E73*$BL$114 -> 0.26 | BQ73: =(($BL$116)/(BP73^($E$122)))^(1/$E$123) -> 1,508.10 | BR73: =BP73*-1 -> -0.26 | BS73: =BQ73*-1 -> -1,508.10 | BT73: =BR73+($BP$83*2)+($BK$114-$BL$114) -> 109.74 | BU73: =BS73+($BQ$83*2)+($BK$115-$BL$115) -> -1,418.10
A74: 7.00 | B74: =($F$126/($A74^($D$120)))^(1/$D$121) -> 6,463.30 | C74: 2 | D74: 0.01 | E74: 0.10 | F74: =IF($D$114*E74>$F$111,$F$111,$D$114*E74) -> 7.00 | G74: =IF(($F$126/($F74^($D$120)))^(1/$D$121)>$F$112,$G$70,$F74) -> 43.71 | H74: =($F$126/($G74^($D$120)))^(1/$D$121) -> 90.00 | I74: =IF(($K$118/($F74^($D$120)))^(1/$D$121)>$F$112,$I$70,F74) -> 16.56 | J74: =($K$118/($I74^($D$120)))^(1/$D$121) -> 90.00 | K74: =IF(($K$129/($F74^($D$120)))^(1/$D$121)>$F$112,$K$70,F74) -> 33.07 | L74: =($K$129/($K74^($D$120)))^(1/$D$121) -> 90.00 | M74: =IF(($Q$118/($F74^($D$120)))^(1/$D$121)>$F$112,$M$70,F74) -> 68.14 | N74: =($Q$118/($M74^($D$120)))^(1/$D$121) -> 90.00 | O74: =IF(($Q$129/($F74^($D$120)))^(1/$D$121)>$F$112,$O$70,F74) -> 90.48 | P74: =($Q$129/($O74^($D$120)))^(1/$D$121) -> 90.00 | S74: =IF(B74>$F$112,1,0) -> 1 | T74: =D74*$F$111 -> 1.10 | U74: =$D$112 -> 20.00 | V74: =$D$111 -> 84.00 | W74: =$F$112*D74 -> 0.90 | X74: =$D$115 -> 30.00 | Y74: =$D$114 -> 70.00 | Z74: =$D$111 -> 84.00 | AA74: =$F$112*J74 -> 8,100.00 | AB74: =$F$111 -> 110.00 | AC74: =$F$112 -> 90.00 | AD74: 0 | AF74: =$E74*$E$114 -> 4.00 | AG74: =(($E$116)/(AF74^($E$122)))^(1/$E$123) -> 278.50 | AH74: =AF74*-1 -> -4.00 | AI74: -278.50 | AJ74: =AH74+($AF$83*2)+($D$114-$E$114) -> 106.00 | AK74: =AI74+($E$115*2)+($D$115-$E$115) -> -188.50 | AM74: =$E74*$AM$116 -> 7.10 | AN74: =(($AM$118)/(AM74^($E$122)))^(1/$E$123) -> 361.11 | AO74: =AM74*-1 -> -7.10 | AP74: -361.11 | AQ74: =AO74+($AM$83*2)+($AL$116-$AM$116) -> 102.90 | AR74: =AP74+($AN$83*2)+($AL$117-$AM$117) -> -271.11 | AT74: =$E74*$AM$127 -> 5.04 | AU74: =(($AM$129)/(AT74^($E$122)))^(1/$E$123) -> 312.18 | AV74: =AT74*-1 -> -5.04 | AW74: -312.18 | AX74: =AV74+($AT$83*2)+($AL$127-$AM$127) -> 104.96 | AY74: =AW74+($AU$83*2)+($AL$128-$AM$128) -> -222.18 | BB74: =$E74*$BC$116 -> 2.14 | BC74: =(($BC$118)/(BB74^($E$122)))^(1/$E$123) -> 191.37 | BD74: =BB74*-1 -> -2.14 | BE74: -191.37 | BF74: =BD74+($BB$83*2)+($BB$116-$BC$116) -> 107.86 | BG74: =BE74+($BC$83*2)+($BB$117-$BC$117) -> -101.37 | BI74: =$E74*$BC$127 -> 0.87 | BJ74: =(($BC$129)/(BI74^($E$122)))^(1/$E$123) -> 96.68 | BK74: =BI74*-1 -> -0.87 | BL74: -96.68 | BM74: =BK74+($BI$83*2)+($BB$127-$BC$127) -> 109.13 | BN74: =BL74+($BJ$83*2)+($BB$128-$BC$128) -> -6.68 | BP74: =$E74*$BL$114 -> 2.60 | BQ74: =(($BL$116)/(BP74^($E$122)))^(1/$E$123) -> 324.91 | BR74: =BP74*-1 -> -2.60 | BS74: -324.91 | BT74: =BR74+($BP$83*2)+($BK$114-$BL$114) -> 107.40 | BU74: =BS74+($BQ$83*2)+($BK$115-$BL$115) -> -234.91
A75: 14.00 | B75: 1,282.48 | C75: 3 | D75: 0.10 | E75: 0.20 | F75: 14.00 | G75: 43.71 | H75: 90.00 | I75: 16.56 | J75: 90.00 | K75: 33.07 | L75: 90.00 | M75: 68.14 | N75: 90.00 | O75: 90.48 | P75: 90.00 | S75: 1 | T75: 11.00 | U75: 20.00 | V75: 84.00 | W75: 9.00 | X75: 30.00 | Y75: 70.00 | Z75: 84.00 | AA75: 8,100.00 | AB75: 110.00 | AC75: 90.00 | AD75: 0 | AF75: 8.00 | AG75: 175.44 | AH75: -8.00 | AI75: -175.44 | AJ75: 102.00 | AK75: -85.44 | AM75: 14.20 | AN75: 227.48 | AO75: -14.20 | AP75: -227.48 | AQ75: 95.80 | AR75: -137.48 | AT75: 10.08 | AU75: 196.66 | AV75: -10.08 | AW75: -196.66 | AX75: 99.92 | AY75: -106.66 | BB75: 4.28 | BC75: 120.56 | BD75: -4.28 | BE75: -120.56 | BF75: 105.72 | BG75: -30.56 | BI75: 1.74 | BJ75: 60.91 | BK75: -1.74 | BL75: -60.91 | BM75: 108.26 | BN75: 29.09 | BP75: 5.20 | BQ75: 204.68 | BR75: -5.20 | BS75: -204.68 | BT75: 104.80 | BU75: -114.68
A76: 21.00 | B76: 497.93 | C76: 4 | D76: 0.15 | E76: 0.30 | F76: 21.00 | G76: 43.71 | H76: 90.00 | I76: 21.00 | J76: 51.68 | K76: 33.07 | L76: 90.00 | M76: 68.14 | N76: 90.00 | O76: 90.48 | P76: 90.00 | S76: 1 | T76: 16.50 | U76: 20.00 | V76: 84.00 | W76: 13.50 | X76: 30.00 | Y76: 70.00 | Z76: 84.00 | AA76: 4,651.45 | AB76: 110.00 | AC76: 90.00 | AD76: 0 | AF76: 12.00 | AG76: 133.89 | AH76: -12.00 | AI76: -133.89 | AJ76: 98.00 | AK76: -43.89 | AM76: 21.30 | AN76: 173.60 | AO76: -21.30 | AP76: -173.60 | AQ76: 88.70 | AR76: -83.60 | AT76: 15.11 | AU76: 150.08 | AV76: -15.11 | AW76: -150.08 | AX76: 94.89 | AY76: -60.08 | BB76: 6.42 | BC76: 92.00 | BD76: -6.42 | BE76: -92.00 | BF76: 103.58 | BG76: -2.00 | BI76: 2.61 | BJ76: 46.48 | BK76: -2.61 | BL76: -46.48 | BM76: 107.39 | BN76: 43.52 | BP76: 7.80 | BQ76: 156.20 | BR76: -7.80 | BS76: -156.20 | BT76: 102.20 | BU76: -66.20
A77: 28.00 | B77: 254.48 | C77: 5 | D77: 0.20 | E77: 0.40 | F77: 28.00 | G77: 43.71 | H77: 90.00 | I77: 28.00 | J77: 26.41 | K77: 33.07 | L77: 90.00 | M77: 68.14 | N77: 90.00 | O77: 90.48 | P77: 90.00 | S77: 1 | T77: 22.00 | U77: 20.00 | V77: 84.00 | W77: 18.00 | X77: 30.00 | Y77: 70.00 | Z77: 84.00 | AA77: 2,377.19 | AB77: 110.00 | AC77: 90.00 | AD77: 0 | AF77: 16.00 | AG77: 110.52 | AH77: -16.00 | AI77: -110.52 | AJ77: 94.00 | AK77: -20.52 | AM77: 28.41 | AN77: 143.30 | AO77: -28.41 | AP77: -143.30 | AQ77: 81.59 | AR77: -53.30 | AT77: 20.15 | AU77: 123.89 | AV77: -20.15 | AW77: -123.89 | AX77: 89.85 | AY77: -33.89 | BB77: 8.56 | BC77: 75.95 | BD77: -8.56 | BE77: -75.95 | BF77: 101.44 | BG77: 14.05 | BI77: 3.49 | BJ77: 38.37 | BK77: -3.49 | BL77: -38.37 | BM77: 106.51 | BN77: 51.63 | BP77: 10.40 | BQ77: 128.94 | BR77: -10.40 | BS77: -128.94 | BT77: 99.60 | BU77: -38.94
A78: 35.00 | B78: 151.19 | C78: 6 | D78: 0.25 | E78: 0.50 | F78: 35.00 | G78: 43.71 | H78: 90.00 | I78: 35.00 | J78: 15.69 | K78: 35.00 | L78: 78.83 | M78: 68.14 | N78: 90.00 | O78: 90.48 | P78: 90.00 | S78: =IF(B78>$F$112,1,0) -> 1 | T78: 27.50 | U78: 20.00 | V78: 84.00 | W78: 22.50 | X78: 30.00 | Y78: 70.00 | Z78: 84.00 | AA78: 1,412.35 | AB78: 110.00 | AC78: 90.00 | AD78: 0 | AF78: 20.00 | AG78: 95.24 | AH78: -20.00 | AI78: -95.24 | AJ78: 90.00 | AK78: -5.24 | AM78: 35.51 | AN78: 123.50 | AO78: -35.51 | AP78: -123.50 | AQ78: 74.49 | AR78: -33.50 | AT78: 25.19 | AU78: 106.76 | AV78: -25.19 | AW78: -106.76 | AX78: 84.81 | AY78: -16.76 | BB78: 10.70 | BC78: 65.45 | BD78: -10.70 | BE78: -65.45 | BF78: 99.30 | BG78: 24.55 | BI78: 4.36 | BJ78: 33.06 | BK78: -4.36 | BL78: -33.06 | BM78: 105.64 | BN78: 56.94 | BP78: 13.00 | BQ78: 111.12 | BR78: -13.00 | BS78: -111.12 | BT78: 97.00 | BU78: -21.12
A79: 42.00 | B79: 98.80 | C79: 7 | D79: 0.30 | E79: 0.60 | F79: 42.00 | G79: 43.71 | H79: 90.00 | I79: 42.00 | J79: 10.26 | K79: 42.00 | L79: 51.51 | M79: 68.14 | N79: 90.00 | O79: 90.48 | P79: 90.00 | S79: 1 | T79: 33.00 | U79: 20.00 | V79: 84.00 | W79: 27.00 | X79: 30.00 | Y79: 70.00 | Z79: 84.00 | AA79: 922.96 | AB79: 110.00 | AC79: 90.00 | AD79: 0 | AF79: 24.00 | AG79: 84.34 | AH79: -24.00 | AI79: -84.34 | AJ79: 86.00 | AK79: 5.66 | AM79: 42.61 | AN79: 109.36 | AO79: -42.61 | AP79: -109.36 | AQ79: 67.39 | AR79: -19.36 | AT79: 30.23 | AU79: 94.54 | AV79: -30.23 | AW79: -94.54 | AX79: 79.77 | AY79: -4.54 | BB79: 12.84 | BC79: 57.96 | BD79: -12.84 | BE79: -57.96 | BF79: 97.16 | BG79: 32.04 | BI79: 5.23 | BJ79: 29.28 | BK79: -5.23 | BL79: -29.28 | BM79: 104.77 | BN79: 60.72 | BP79: 15.60 | BQ79: 98.40 | BR79: -15.60 | BS79: -98.40 | BT79: 94.40 | BU79: -8.40
A80: 49.00 | B80: 68.95 | C80: 8 | D80: 0.35 | E80: 0.70 | F80: 49.00 | G80: 49.00 | H80: 68.95 | I80: 49.00 | J80: 7.16 | K80: 49.00 | L80: 35.95 | M80: 68.14 | N80: 90.00 | O80: 90.48 | P80: 90.00 | S80: 0 | T80: 38.50 | U80: 20.00 | V80: 84.00 | W80: 31.50 | X80: 30.00 | Y80: 70.00 | Z80: 84.00 | AA80: 644.13 | AB80: 110.00 | AC80: 90.00 | AD80: 0 | AF80: 28.00 | AG80: 76.11 | AH80: -28.00 | AI80: -76.11 | AJ80: 82.00 | AK80: 13.89 | AM80: 49.71 | AN80: 98.68 | AO80: -49.71 | AP80: -98.68 | AQ80: 60.29 | AR80: -8.68 | AT80: 35.26 | AU80: 85.31 | AV80: -35.26 | AW80: -85.31 | AX80: 74.74 | AY80: 4.69 | BB80: 14.98 | BC80: 52.30 | BD80: -14.98 | BE80: -52.30 | BF80: 95.02 | BG80: 37.70 | BI80: 6.10 | BJ80: 26.42 | BK80: -6.10 | BL80: -26.42 | BM80: 103.90 | BN80: 63.58 | BP80: 18.20 | BQ80: 88.79 | BR80: -18.20 | BS80: -88.79 | BT80: 91.80 | BU80: 1.21
A81: 56.00 | B81: 50.49 | C81: 9 | D81: 0.40 | E81: 0.80 | F81: 56.00 | G81: 56.00 | H81: 50.49 | I81: 56.00 | J81: 5.24 | K81: 56.00 | L81: 26.33 | M81: 68.14 | N81: 90.00 | O81: 90.48 | P81: 90.00 | S81: 0 | T81: 44.00 | U81: 20.00 | V81: 84.00 | W81: 36.00 | X81: 30.00 | Y81: 70.00 | Z81: 84.00 | AA81: 471.69 | AB81: 110.00 | AC81: 90.00 | AD81: 0 | AF81: 32.00 | AG81: 69.62 | AH81: -32.00 | AI81: -69.62 | AJ81: 78.00 | AK81: 20.38 | AM81: 56.81 | AN81: 90.28 | AO81: -56.81 | AP81: -90.28 | AQ81: 53.19 | AR81: -0.28 | AT81: 40.30 | AU81: 78.04 | AV81: -40.30 | AW81: -78.04 | AX81: 69.70 | AY81: 11.96 | BB81: 17.12 | BC81: 47.84 | BD81: -17.12 | BE81: -47.84 | BF81: 92.88 | BG81: 42.16 | BI81: 6.97 | BJ81: 24.17 | BK81: -6.97 | BL81: -24.17 | BM81: 103.03 | BN81: 65.83 | BP81: 20.80 | BQ81: 81.23 | BR81: -20.80 | BS81: -81.23 | BT81: 89.20 | BU81: 8.77
A82: 63.00 | B82: 38.36 | C82: 10 | D82: 0.45 | E82: 0.90 | F82: 63.00 | G82: 63.00 | H82: 38.36 | I82: 63.00 | J82: 3.98 | K82: 63.00 | L82: 20.00 | M82: 68.14 | N82: 90.00 | O82: 90.48 | P82: 90.00 | S82: 0 | T82: 49.50 | U82: 20.00 | V82: 84.00 | W82: 40.50 | X82: 30.00 | Y82: 70.00 | Z82: 84.00 | AA82: 358.35 | AB82: 110.00 | AC82: 90.00 | AD82: 0 | AF82: 36.00 | AG82: 64.37 | AH82: -36.00 | AI82: -64.37 | AJ82: 74.00 | AK82: 25.63 | AM82: 63.91 | AN82: 83.46 | AO82: -63.91 | AP82: -83.46 | AQ82: 46.09 | AR82: 6.54 | AT82: 45.34 | AU82: 72.15 | AV82: -45.34 | AW82: -72.15 | AX82: 64.66 | AY82: 17.85 | BB82: 19.26 | BC82: 44.23 | BD82: -19.26 | BE82: -44.23 | BF82: 90.74 | BG82: 45.77 | BI82: 7.84 | BJ82: 22.34 | BK82: -7.84 | BL82: -22.34 | BM82: 102.16 | BN82: 67.66 | BP82: 23.40 | BQ82: 75.09 | BR82: -23.40 | BS82: -75.09 | BT82: 86.60 | BU82: 14.91
A83: 70.00 | B83: =($F$126/($F83^($D$120)))^(1/$D$121) -> 30.00 | C83: 11 | D83: 0.50 | E83: 1.00 | F83: 70.00 | G83: 70.00 | H83: 30.00 | I83: 70.00 | J83: 3.11 | K83: 70.00 | L83: 15.64 | M83: 70.00 | N83: 84.52 | O83: 90.48 | P83: 90.00 | T83: 55.00 | U83: 20.00 | V83: 84.00 | W83: 45.00 | X83: 30.00 | Y83: 70.00 | Z83: 84.00 | AA83: 280.24 | AB83: 110.00 | AC83: 90.00 | AD83: 0 | AF83: 40.00 | AG83: 60.00 | AH83: -40.00 | AI83: -60.00 | AJ83: 70.00 | AK83: 30.00 | AM83: 71.02 | AN83: 77.80 | AO83: -71.02 | AP83: -77.80 | AQ83: 38.98 | AR83: 12.20 | AT83: 50.38 | AU83: 67.26 | AV83: -50.38 | AW83: -67.26 | AX83: 59.62 | AY83: 22.74 | BB83: 21.40 | BC83: 41.23 | BD83: -21.40 | BE83: -41.23 | BF83: 88.60 | BG83: 48.77 | BI83: 8.71 | BJ83: 20.83 | BK83: -8.71 | BL83: -20.83 | BM83: 101.29 | BN83: 69.17 | BP83: 26.00 | BQ83: 70.00 | BR83: -26.00 | BS83: -70.00 | BT83: 84.00 | BU83: 20.00
A84: 77.00 | B84: =($F$126/($F84^($D$120)))^(1/$D$121) -> 24.02 | C84: 12 | D84: 0.55 | E84: 1.10 | F84: 77.00 | G84: 77.00 | H84: 24.02 | I84: 77.00 | J84: 2.49 | K84: 77.00 | L84: 12.52 | M84: 77.00 | N84: 67.66 | O84: 90.48 | P84: 90.00 | T84: 60.50 | U84: 20.00 | V84: 84.00 | W84: 49.50 | X84: 30.00 | Y84: 70.00 | Z84: 84.00 | AA84: 224.36 | AB84: 110.00 | AC84: 90.00 | AD84: 0 | AF84: 44.00 | AG84: 56.31 | AH84: -44.00 | AI84: -56.31 | AJ84: 66.00 | AK84: 33.69 | AM84: 78.12 | AN84: 73.01 | AO84: -78.12 | AP84: -73.01 | AQ84: 31.88 | AR84: 16.99 | AT84: 55.41 | AU84: 63.12 | AV84: -55.41 | AW84: -63.12 | AX84: 54.59 | AY84: 26.88 | BB84: 23.54 | BC84: 38.69 | BD84: -23.54 | BE84: -38.69 | BF84: 86.46 | BG84: 51.31 | BI84: 9.59 | BJ84: 19.55 | BK84: -9.59 | BL84: -19.55 | BM84: 100.41 | BN84: 70.45 | BP84: 28.60 | BQ84: 65.69 | BR84: -28.60 | BS84: -65.69 | BT84: 81.40 | BU84: 24.31
A85: 84.00 | B85: 19.60 | C85: 13 | D85: 0.60 | E85: 1.20 | F85: 84.00 | G85: 84.00 | H85: 19.60 | I85: 84.00 | J85: 2.03 | K85: 84.00 | L85: 10.22 | M85: 84.00 | N85: 55.23 | O85: 90.48 | P85: 90.00 | T85: 66.00 | U85: 20.00 | V85: 84.00 | W85: 54.00 | X85: 30.00 | Y85: 70.00 | Z85: 84.00 | AA85: 183.14 | AB85: 110.00 | AC85: 90.00 | AD85: 0 | AF85: 48.00 | AG85: 53.13 | AH85: -48.00 | AI85: -53.13 | AJ85: 62.00 | AK85: 36.87 | AM85: 85.22 | AN85: 68.89 | AO85: -85.22 | AP85: -68.89 | AQ85: 24.78 | AR85: 21.11 | AT85: 60.45 | AU85: 59.56 | AV85: -60.45 | AW85: -59.56 | AX85: 49.55 | AY85: 30.44 | BB85: 25.68 | BC85: 36.51 | BD85: -25.68 | BE85: -36.51 | BF85: 84.32 | BG85: 53.49 | BI85: 10.46 | BJ85: 18.45 | BK85: -10.46 | BL85: -18.45 | BM85: 99.54 | BN85: 71.55 | BP85: 31.20 | BQ85: 61.99 | BR85: -31.20 | BS85: -61.99 | BT85: 78.80 | BU85: 28.01
A86: 91.00 | B86: 16.26 | C86: 14 | D86: 0.65 | E86: 1.30 | F86: 91.00 | G86: 91.00 | H86: 16.26 | I86: 91.00 | J86: 1.69 | K86: 91.00 | L86: 8.48 | M86: 91.00 | N86: 45.82 | O86: 91.00 | P86: 88.81 | T86: 71.50 | U86: 20.00 | V86: 84.00 | W86: 58.50 | X86: 30.00 | Y86: 70.00 | Z86: 84.00 | AA86: 151.94 | AB86: 110.00 | AC86: 90.00 | AD86: 0 | AF86: 52.00 | AG86: 50.37 | AH86: -52.00 | AI86: -50.37 | AJ86: 58.00 | AK86: 39.63 | AM86: 92.32 | AN86: 65.31 | AO86: -92.32 | AP86: -65.31 | AQ86: 17.68 | AR86: 24.69 | AT86: 65.49 | AU86: 56.46 | AV86: -65.49 | AW86: -56.46 | AX86: 44.51 | AY86: 33.54 | BB86: 27.82 | BC86: 34.61 | BD86: -27.82 | BE86: -34.61 | BF86: 82.18 | BG86: 55.39 | BI86: 11.33 | BJ86: 17.49 | BK86: -11.33 | BL86: -17.49 | BM86: 98.67 | BN86: 72.51 | BP86: 33.80 | BQ86: 58.77 | BR86: -33.80 | BS86: -58.77 | BT86: 76.20 | BU86: 31.23
A87: 98.00 | B87: 13.68 | C87: 15 | D87: 0.70 | E87: 1.40 | F87: 98.00 | G87: 98.00 | H87: 13.68 | I87: 98.00 | J87: 1.42 | K87: 98.00 | L87: 7.13 | M87: 98.00 | N87: 38.55 | O87: 98.00 | P87: 74.70 | T87: 77.00 | U87: 20.00 | V87: 84.00 | W87: 63.00 | X87: 30.00 | Y87: 70.00 | Z87: 84.00 | AA87: 127.81 | AB87: 110.00 | AC87: 90.00 | AD87: 0 | AF87: 56.00 | AG87: 47.94 | AH87: -56.00 | AI87: -47.94 | AJ87: 54.00 | AK87: 42.06 | AM87: 99.42 | AN87: 62.17 | AO87: -99.42 | AP87: -62.17 | AQ87: 10.58 | AR87: 27.83 | AT87: 70.53 | AU87: 53.74 | AV87: -70.53 | AW87: -53.74 | AX87: 39.47 | AY87: 36.26 | BB87: 29.96 | BC87: 32.94 | BD87: -29.96 | BE87: -32.94 | BF87: 80.04 | BG87: 57.06 | BI87: 12.20 | BJ87: 16.64 | BK87: -12.20 | BL87: -16.64 | BM87: 97.80 | BN87: 73.36 | BP87: 36.40 | BQ87: 55.93 | BR87: -36.40 | BS87: -55.93 | BT87: 73.60 | BU87: 34.07
A88: 105.00 | B88: 11.65 | C88: 16 | D88: 0.75 | E88: 1.50 | F88: 105.00 | G88: 105.00 | H88: 11.65 | I88: 105.00 | J88: 1.21 | K88: 105.00 | L88: 6.07 | M88: 105.00 | N88: 32.81 | O88: 105.00 | P88: 63.60 | T88: 82.50 | U88: 20.00 | V88: 84.00 | W88: 67.50 | X88: 30.00 | Y88: 70.00 | Z88: 84.00 | AA88: 108.81 | AB88: 110.00 | AC88: 90.00 | AD88: 0 | AF88: 60.00 | AG88: 45.79 | AH88: -60.00 | AI88: -45.79 | AJ88: 50.00 | AK88: 44.21 | AM88: 106.52 | AN88: 59.37 | AO88: -106.52 | AP88: -59.37 | AQ88: 3.48 | AR88: 30.63 | AT88: 75.56 | AU88: 51.33 | AV88: -75.56 | AW88: -51.33 | AX88: 34.44 | AY88: 38.67 | BB88: 32.10 | BC88: 31.46 | BD88: -32.10 | BE88: -31.46 | BF88: 77.90 | BG88: 58.54 | BI88: 13.07 | BJ88: 15.90 | BK88: -13.07 | BL88: -15.90 | BM88: 96.93 | BN88: 74.10 | BP88: 39.00 | BQ88: 53.42 | BR88: -39.00 | BS88: -53.42 | BT88: 71.00 | BU88: 36.58
A89: 112.00 | B89: 10.45 | C89: 17 | D89: 0.80 | E89: 1.60 | F89: 110.00 | G89: 110.00 | H89: 10.45 | I89: 110.00 | J89: 1.08 | K89: 110.00 | L89: 5.45 | M89: 110.00 | N89: 29.44 | O89: 110.00 | P89: 57.05 | T89: 88.00 | U89: 20.00 | V89: 84.00 | W89: 72.00 | X89: 30.00 | Y89: 70.00 | Z89: 84.00 | AA89: 97.62 | AB89: 110.00 | AC89: 90.00 | AD89: 0 | AF89: 64.00 | AG89: 43.86 | AH89: -64.00 | AI89: -43.86 | AJ89: 46.00 | AK89: 46.14 | AM89: 113.62 | AN89: 56.87 | AO89: -113.62 | AP89: -56.87 | AQ89: -3.62 | AR89: 33.13 | AT89: 80.60 | AU89: 49.16 | AV89: -80.60 | AW89: -49.16 | AX89: 29.40 | AY89: 40.84 | BB89: 34.24 | BC89: 30.14 | BD89: -34.24 | BE89: -30.14 | BF89: 75.76 | BG89: 59.86 | BI89: 13.94 | BJ89: 15.23 | BK89: -13.94 | BL89: -15.23 | BM89: 96.06 | BN89: 74.77 | BP89: 41.60 | BQ89: 51.17 | BR89: -41.60 | BS89: -51.17 | BT89: 68.40 | BU89: 38.83
A90: 119.00 | B90: 10.45 | C90: 18 | D90: 0.85 | E90: 1.70 | F90: 110.00 | G90: 110.00 | H90: 10.45 | I90: 110.00 | J90: 1.08 | K90: 110.00 | L90: 5.45 | M90: 110.00 | N90: 29.44 | O90: 110.00 | P90: 57.05 | T90: 93.50 | U90: 20.00 | V90: 84.00 | W90: 76.50 | X90: 30.00 | Y90: 70.00 | Z90: 84.00 | AA90: 97.62 | AB90: 110.00 | AC90: 90.00 | AD90: 0 | AF90: 68.00 | AG90: 42.12 | AH90: -68.00 | AI90: -42.12 | AJ90: 42.00 | AK90: 47.88 | AM90: 120.73 | AN90: 54.62 | AO90: -120.73 | AP90: -54.62 | AQ90: -10.73 | AR90: 35.38 | AT90: 85.64 | AU90: 47.22 | AV90: -85.64 | AW90: -47.22 | AX90: 24.36 | AY90: 42.78 | BB90: 36.38 | BC90: 28.95 | BD90: -36.38 | BE90: -28.95 | BF90: 73.62 | BG90: 61.05 | BI90: 14.81 | BJ90: 14.62 | BK90: -14.81 | BL90: -14.62 | BM90: 95.19 | BN90: 75.38 | BP90: 44.20 | BQ90: 49.14 | BR90: -44.20 | BS90: -49.14 | BT90: 65.80 | BU90: 40.86
A91: 126.00 | B91: 10.45 | C91: 19 | D91: 0.90 | E91: 1.80 | F91: 110.00 | G91: 110.00 | H91: 10.45 | I91: 110.00 | J91: 1.08 | K91: 110.00 | L91: 5.45 | M91: 110.00 | N91: 29.44 | O91: 110.00 | P91: 57.05 | T91: 99.00 | U91: 20.00 | V91: 84.00 | W91: 81.00 | X91: 30.00 | Y91: 70.00 | Z91: 84.00 | AA91: 97.62 | AB91: 110.00 | AC91: 90.00 | AD91: 0 | AF91: 72.00 | AG91: 40.55 | AH91: -72.00 | AI91: -40.55 | AJ91: 38.00 | AK91: 49.45 | AM91: 127.83 | AN91: 52.58 | AO91: -127.83 | AP91: -52.58 | AQ91: -17.83 | AR91: 37.42 | AT91: 90.68 | AU91: 45.45 | AV91: -90.68 | AW91: -45.45 | AX91: 19.32 | AY91: 44.55 | BB91: 38.52 | BC91: 27.86 | BD91: -38.52 | BE91: -27.86 | BF91: 71.48 | BG91: 62.14 | BI91: 15.69 | BJ91: 14.08 | BK91: -15.69 | BL91: -14.08 | BM91: 94.31 | BN91: 75.92 | BP91: 46.80 | BQ91: 47.31 | BR91: -46.80 | BS91: -47.31 | BT91: 63.20 | BU91: 42.69
A92: 133.00 | B92: 10.45 | C92: 20 | D92: 0.95 | E92: 1.90 | F92: 110.00 | G92: 110.00 | H92: 10.45 | I92: 110.00 | J92: 1.08 | K92: 110.00 | L92: 5.45 | M92: 110.00 | N92: 29.44 | O92: 110.00 | P92: 57.05 | T92: 104.50 | U92: 20.00 | V92: 84.00 | W92: 85.50 | X92: 30.00 | Y92: 70.00 | Z92: 84.00 | AA92: 97.62 | AB92: 110.00 | AC92: 90.00 | AD92: 0 | AF92: 76.00 | AG92: 39.11 | AH92: -76.00 | AI92: -39.11 | AJ92: 34.00 | AK92: 50.89 | AM92: 134.93 | AN92: 50.71 | AO92: -134.93 | AP92: -50.71 | AQ92: -24.93 | AR92: 39.29 | AT92: 95.72 | AU92: 43.84 | AV92: -95.72 | AW92: -43.84 | AX92: 14.28 | AY92: 46.16 | BB92: 40.66 | BC92: 26.88 | BD92: -40.66 | BE92: -26.88 | BF92: 69.34 | BG92: 63.12 | BI92: 16.56 | BJ92: 13.58 | BK92: -16.56 | BL92: -13.58 | BM92: 93.44 | BN92: 76.42 | BP92: 49.40 | BQ92: 45.63 | BR92: -49.40 | BS92: -45.63 | BT92: 60.60 | BU92: 44.37
A93: 140.00 | B93: 10.45 | C93: 21 | D93: 1.00 | E93: 2.00 | F93: 110.00 | G93: 110.00 | H93: 10.45 | I93: 110.00 | J93: 1.08 | K93: 110.00 | L93: 5.45 | M93: 110.00 | N93: 29.44 | O93: 110.00 | P93: 57.05 | T93: 110.00 | U93: 20.00 | V93: 84.00 | W93: 90.00 | X93: 30.00 | Y93: 70.00 | Z93: 84.00 | AA93: 97.62 | AB93: 110.00 | AC93: 90.00 | AD93: 0 | AF93: 80.00 | AG93: 37.80 | AH93: -80.00 | AI93: -37.80 | AJ93: 30.00 | AK93: 52.20 | AM93: 142.03 | AN93: 49.01 | AO93: -142.03 | AP93: -49.01 | AQ93: -32.03 | AR93: 40.99 | AT93: 100.75 | AU93: 42.37 | AV93: -100.75 | AW93: -42.37 | AX93: 9.25 | AY93: 47.63 | BB93: 42.80 | BC93: 25.97 | BD93: -42.80 | BE93: -25.97 | BF93: 67.20 | BG93: 64.03 | BI93: 17.43 | BJ93: 13.12 | BK93: -17.43 | BL93: -13.12 | BM93: 92.57 | BN93: 76.88 | BP93: 52.00 | BQ93: 44.10 | BR93: -52.00 | BS93: -44.10 | BT93: 58.00 | BU93: 45.90
A94: 147.00 | B94: 10.45 | C94: 22 | D94: 1.05 | E94: 2.10 | F94: 110.00 | G94: 110.00 | H94: 10.45 | I94: 110.00 | J94: 1.08 | K94: 110.00 | L94: 5.45 | M94: 110.00 | N94: 29.44 | O94: 110.00 | P94: 57.05 | T94: 115.50 | U94: 20.00 | V94: 84.00 | W94: 94.50 | X94: 30.00 | Y94: 70.00 | Z94: 84.00 | AA94: 97.62 | AB94: 110.00 | AC94: 90.00 | AD94: 0 | AF94: 84.00 | AG94: 36.59 | AH94: -84.00 | AI94: -36.59 | AJ94: 26.00 | AK94: 53.41 | AM94: 149.13 | AN94: 47.44 | AO94: -149.13 | AP94: -47.44 | AQ94: -39.13 | AR94: 42.56 | AT94: 105.79 | AU94: 41.01 | AV94: -105.79 | AW94: -41.01 | AX94: 4.21 | AY94: 48.99 | BB94: 44.94 | BC94: 25.14 | BD94: -44.94 | BE94: -25.14 | BF94: 65.06 | BG94: 64.86 | BI94: 18.30 | BJ94: 12.70 | BK94: -18.30 | BL94: -12.70 | BM94: 91.70 | BN94: 77.30 | BP94: 54.60 | BQ94: 42.69 | BR94: -54.60 | BS94: -42.69 | BT94: 55.40 | BU94: 47.31
A95: 154.00 | B95: 10.45 | C95: 23 | D95: 1.10 | E95: 2.20 | F95: 110.00 | G95: 110.00 | H95: 10.45 | I95: 110.00 | J95: 1.08 | K95: 110.00 | L95: 5.45 | M95: 110.00 | N95: 29.44 | O95: 110.00 | P95: 57.05 | T95: 121.00 | U95: 20.00 | V95: 84.00 | W95: 99.00 | X95: 30.00 | Y95: 70.00 | Z95: 84.00 | AA95: 97.62 | AB95: 110.00 | AC95: 90.00 | AD95: 0 | AF95: 88.00 | AG95: 35.47 | AH95: -88.00 | AI95: -35.47 | AJ95: 22.00 | AK95: 54.53 | AM95: 156.23 | AN95: 45.99 | AO95: -156.23 | AP95: -45.99 | AQ95: -46.23 | AR95: 44.01 | AT95: 110.83 | AU95: 39.76 | AV95: -110.83 | AW95: -39.76 | AX95: -0.83 | AY95: 50.24 | BB95: 47.08 | BC95: 24.37 | BD95: -47.08 | BE95: -24.37 | BF95: 62.92 | BG95: 65.63 | BI95: 19.17 | BJ95: 12.31 | BK95: -19.17 | BL95: -12.31 | BM95: 90.83 | BN95: 77.69 | BP95: 57.20 | BQ95: 41.38 | BR95: -57.20 | BS95: -41.38 | BT95: 52.80 | BU95: 48.62
A96: 161.00 | B96: 10.45 | C96: 24 | D96: 1.15 | E96: 2.30 | F96: 110.00 | G96: 110.00 | H96: 10.45 | I96: 110.00 | J96: 1.08 | K96: 110.00 | L96: 5.45 | M96: 110.00 | N96: 29.44 | O96: 110.00 | P96: 57.05 | T96: 126.50 | U96: 20.00 | V96: 84.00 | W96: 103.50 | X96: 30.00 | Y96: 70.00 | Z96: 84.00 | AA96: 97.62 | AB96: 110.00 | AC96: 90.00 | AD96: 0 | AF96: 92.00 | AG96: 34.43 | AH96: -92.00 | AI96: -34.43 | AJ96: 18.00 | AK96: 55.57 | AM96: 163.34 | AN96: 44.65 | AO96: -163.34 | AP96: -44.65 | AQ96: -53.34 | AR96: 45.35 | AT96: 115.87 | AU96: 38.60 | AV96: -115.87 | AW96: -38.60 | AX96: -5.87 | AY96: 51.40 | BB96: 49.22 | BC96: 23.66 | BD96: -49.22 | BE96: -23.66 | BF96: 60.78 | BG96: 66.34 | BI96: 20.04 | BJ96: 11.95 | BK96: -20.04 | BL96: -11.95 | BM96: 89.96 | BN96: 78.05 | BP96: 59.80 | BQ96: 40.17 | BR96: -59.80 | BS96: -40.17 | BT96: 50.20 | BU96: 49.83
A97: 168.00 | B97: 10.45 | C97: 25 | D97: 1.20 | E97: 2.40 | F97: 110.00 | G97: 110.00 | H97: 10.45 | I97: 110.00 | J97: 1.08 | K97: 110.00 | L97: 5.45 | M97: 110.00 | N97: 29.44 | O97: 110.00 | P97: 57.05 | T97: 132.00 | U97: 20.00 | V97: 84.00 | W97: 108.00 | X97: 30.00 | Y97: 70.00 | Z97: 84.00 | AA97: 97.62 | AB97: 110.00 | AC97: 90.00 | AD97: 0 | AF97: 96.00 | AG97: 33.47 | AH97: -96.00 | AI97: -33.47 | AJ97: 14.00 | AK97: 56.53 | AM97: 170.44 | AN97: 43.40 | AO97: -170.44 | AP97: -43.40 | AQ97: -60.44 | AR97: 46.60 | AT97: 120.90 | AU97: 37.52 | AV97: -120.90 | AW97: -37.52 | AX97: -10.90 | AY97: 52.48 | BB97: 51.36 | BC97: 23.00 | BD97: -51.36 | BE97: -23.00 | BF97: 58.64 | BG97: 67.00 | BI97: 20.91 | BJ97: 11.62 | BK97: -20.91 | BL97: -11.62 | BM97: 89.09 | BN97: 78.38 | BP97: 62.40 | BQ97: 39.05 | BR97: -62.40 | BS97: -39.05 | BT97: 47.60 | BU97: 50.95
A98: 175.00 | B98: 10.45 | C98: 26 | D98: 1.25 | E98: 2.50 | F98: 110.00 | G98: 110.00 | H98: 10.45 | I98: 110.00 | J98: 1.08 | K98: 110.00 | L98: 5.45 | M98: 110.00 | N98: 29.44 | O98: 110.00 | P98: 57.05 | T98: 137.50 | U98: 20.00 | V98: 84.00 | W98: 112.50 | X98: 30.00 | Y98: 70.00 | Z98: 84.00 | AA98: 97.62 | AB98: 110.00 | AC98: 90.00 | AD98: 0 | AF98: 100.00 | AG98: 32.57 | AH98: -100.00 | AI98: -32.57 | AJ98: 10.00 | AK98: 57.43 | AM98: 177.54 | AN98: 42.24 | AO98: -177.54 | AP98: -42.24 | AQ98: -67.54 | AR98: 47.76 | AT98: 125.94 | AU98: 36.51 | AV98: -125.94 | AW98: -36.51 | AX98: -15.94 | AY98: 53.49 | BB98: 53.50 | BC98: 22.38 | BD98: -53.50 | BE98: -22.38 | BF98: 56.50 | BG98: 67.62 | BI98: 21.79 | BJ98: 11.31 | BK98: -21.79 | BL98: -11.31 | BM98: 88.21 | BN98: 78.69 | BP98: 65.00 | BQ98: 38.00 | BR98: -65.00 | BS98: -38.00 | BT98: 45.00 | BU98: 52.00
A99: 182.00 | B99: 10.45 | C99: 27 | D99: 1.30 | E99: 2.60 | F99: 110.00 | G99: 110.00 | H99: 10.45 | I99: 110.00 | J99: 1.08 | K99: 110.00 | L99: 5.45 | M99: 110.00 | N99: 29.44 | O99: 110.00 | P99: 57.05 | T99: 143.00 | U99: 20.00 | V99: 84.00 | W99: 117.00 | X99: 30.00 | Y99: 70.00 | Z99: 84.00 | AA99: 97.62 | AB99: 110.00 | AC99: 90.00 | AD99: 0 | AF99: 104.00 | AG99: 31.73 | AH99: -104.00 | AI99: -31.73 | AJ99: 6.00 | AK99: 58.27 | AM99: 184.64 | AN99: 41.15 | AO99: -184.64 | AP99: -41.15 | AQ99: -74.64 | AR99: 48.85 | AT99: 130.98 | AU99: 35.57 | AV99: -130.98 | AW99: -35.57 | AX99: -20.98 | AY99: 54.43 | BB99: 55.64 | BC99: 21.81 | BD99: -55.64 | BE99: -21.81 | BF99: 54.36 | BG99: 68.19 | BI99: 22.66 | BJ99: 11.02 | BK99: -22.66 | BL99: -11.02 | BM99: 87.34 | BN99: 78.98 | BP99: 67.60 | BQ99: 37.02 | BR99: -67.60 | BS99: -37.02 | BT99: 42.40 | BU99: 52.98
A100: 189.00 | B100: 10.45 | C100: 28 | D100: 1.35 | E100: 2.70 | F100: 110.00 | G100: 110.00 | H100: 10.45 | I100: 110.00 | J100: 1.08 | K100: 110.00 | L100: 5.45 | M100: 110.00 | N100: 29.44 | O100: 110.00 | P100: 57.05 | T100: 148.50 | U100: 20.00 | V100: 84.00 | W100: 121.50 | X100: 30.00 | Y100: 70.00 | Z100: 84.00 | AA100: 97.62 | AB100: 110.00 | AC100: 90.00 | AD100: 0 | AF100: 108.00 | AG100: 30.94 | AH100: -108.00 | AI100: -30.94 | AJ100: 2.00 | AK100: 59.06 | AM100: 191.74 | AN100: 40.12 | AO100: -191.74 | AP100: -40.12 | AQ100: -81.74 | AR100: 49.88 | AT100: 136.02 | AU100: 34.69 | AV100: -136.02 | AW100: -34.69 | AX100: -26.02 | AY100: 55.31 | BB100: 57.78 | BC100: 21.26 | BD100: -57.78 | BE100: -21.26 | BF100: 52.22 | BG100: 68.74 | BI100: 23.53 | BJ100: 10.74 | BK100: -23.53 | BL100: -10.74 | BM100: 86.47 | BN100: 79.26 | BP100: 70.20 | BQ100: 36.10 | BR100: -70.20 | BS100: -36.10 | BT100: 39.80 | BU100: 53.90
A101: 196.00 | B101: 10.45 | C101: 29 | D101: 1.40 | E101: 2.80 | F101: 110.00 | G101: 110.00 | H101: 10.45 | I101: 110.00 | J101: 1.08 | K101: 110.00 | L101: 5.45 | M101: 110.00 | N101: 29.44 | O101: 110.00 | P101: 57.05 | T101: 154.00 | U101: 20.00 | V101: 84.00 | W101: 126.00 | X101: 30.00 | Y101: 70.00 | Z101: 84.00 | AA101: 97.62 | AB101: 110.00 | AC101: 90.00 | AD101: 0 | AF101: 112.00 | AG101: 30.20 | AH101: -112.00 | AI101: -30.20 | AJ101: -2.00 | AK101: 59.80 | AM101: 198.84 | AN101: 39.16 | AO101: -198.84 | AP101: -39.16 | AQ101: -88.84 | AR101: 50.84 | AT101: 141.05 | AU101: 33.86 | AV101: -141.05 | AW101: -33.86 | AX101: -31.05 | AY101: 56.14 | BB101: 59.92 | BC101: 20.75 | BD101: -59.92 | BE101: -20.75 | BF101: 50.08 | BG101: 69.25 | BI101: 24.40 | BJ101: 10.49 | BK101: -24.40 | BL101: -10.49 | BM101: 85.60 | BN101: 79.51 | BP101: 72.80 | BQ101: 35.24 | BR101: -72.80 | BS101: -35.24 | BT101: 37.20 | BU101: 54.76
A102: 203.00 | B102: 10.45 | C102: 30 | D102: 1.45 | E102: 2.90 | F102: 110.00 | G102: 110.00 | H102: 10.45 | I102: 110.00 | J102: 1.08 | K102: 110.00 | L102: 5.45 | M102: 110.00 | N102: 29.44 | O102: 110.00 | P102: 57.05 | T102: 159.50 | U102: 20.00 | V102: 84.00 | W102: 130.50 | X102: 30.00 | Y102: 70.00 | Z102: 84.00 | AA102: 97.62 | AB102: 110.00 | AC102: 90.00 | AD102: 0 | AF102: 116.00 | AG102: 29.50 | AH102: -116.00 | AI102: -29.50 | AJ102: -6.00 | AK102: 60.50 | AM102: 205.94 | AN102: 38.26 | AO102: -205.94 | AP102: -38.26 | AQ102: -95.94 | AR102: 51.74 | AT102: 146.09 | AU102: 33.07 | AV102: -146.09 | AW102: -33.07 | AX102: -36.09 | AY102: 56.93 | BB102: 62.06 | BC102: 20.27 | BD102: -62.06 | BE102: -20.27 | BF102: 47.94 | BG102: 69.73 | BI102: 25.27 | BJ102: 10.24 | BK102: -25.27 | BL102: -10.24 | BM102: 84.73 | BN102: 79.76 | BP102: 75.40 | BQ102: 34.42 | BR102: -75.40 | BS102: -34.42 | BT102: 34.60 | BU102: 55.58
A103: 210.00 | B103: 10.45 | C103: 31 | D103: 1.50 | E103: 3.00 | F103: 110.00 | G103: 110.00 | H103: 10.45 | I103: 110.00 | J103: 1.08 | K103: 110.00 | L103: 5.45 | M103: 110.00 | N103: 29.44 | O103: 110.00 | P103: 57.05 | T103: 165.00 | U103: 20.00 | V103: 84.00 | W103: 135.00 | X103: 30.00 | Y103: 70.00 | Z103: 84.00 | AA103: 97.62 | AB103: 110.00 | AC103: 90.00 | AD103: 0 | AF103: 120.00 | AG103: 28.84 | AH103: -120.00 | AI103: -28.84 | AJ103: -10.00 | AK103: 61.16 | AM103: 213.05 | AN103: 37.40 | AO103: -213.05 | AP103: -37.40 | AQ103: -103.05 | AR103: 52.60 | AT103: 151.13 | AU103: 32.33 | AV103: -151.13 | AW103: -32.33 | AX103: -41.13 | AY103: 57.67 | BB103: 64.20 | BC103: 19.82 | BD103: -64.20 | BE103: -19.82 | BF103: 45.80 | BG103: 70.18 | BI103: 26.14 | BJ103: 10.01 | BK103: -26.14 | BL103: -10.01 | BM103: 83.86 | BN103: 79.99 | BP103: 78.00 | BQ103: 33.65 | BR103: -78.00 | BS103: -33.65 | BT103: 32.00 | BU103: 56.35
A104: 217.00 | B104: 10.45 | C104: 32 | D104: 1.55 | E104: 3.10 | F104: 110.00 | G104: 110.00 | H104: 10.45 | I104: 110.00 | J104: 1.08 | K104: 110.00 | L104: 5.45 | M104: 110.00 | N104: 29.44 | O104: 110.00 | P104: 57.05 | T104: 170.50 | U104: 20.00 | V104: 84.00 | W104: 139.50 | X104: 30.00 | Y104: 70.00 | Z104: 84.00 | AA104: 97.62 | AB104: 110.00 | AC104: 90.00 | AD104: 0 | AF104: 124.00 | AG104: 28.22 | AH104: -124.00 | AI104: -28.22 | AJ104: -14.00 | AK104: 61.78 | AM104: 220.15 | AN104: 36.59 | AO104: -220.15 | AP104: -36.59 | AQ104: -110.15 | AR104: 53.41 | AT104: 156.17 | AU104: 31.63 | AV104: -156.17 | AW104: -31.63 | AX104: -46.17 | AY104: 58.37 | BB104: 66.34 | BC104: 19.39 | BD104: -66.34 | BE104: -19.39 | BF104: 43.66 | BG104: 70.61 | BI104: 27.01 | BJ104: 9.80 | BK104: -27.01 | BL104: -9.80 | BM104: 82.99 | BN104: 80.20 | BP104: 80.60 | BQ104: 32.92 | BR104: -80.60 | BS104: -32.92 | BT104: 29.40 | BU104: 57.08
A105: 224.00 | B105: 10.45 | C105: 33 | D105: 1.60 | E105: 3.20 | F105: 110.00 | G105: 110.00 | H105: 10.45 | I105: 110.00 | J105: 1.08 | K105: 110.00 | L105: 5.45 | M105: 110.00 | N105: 29.44 | O105: 110.00 | P105: 57.05 | T105: 176.00 | U105: 20.00 | V105: 84.00 | W105: 144.00 | X105: 30.00 | Y105: 70.00 | Z105: 84.00 | AA105: 97.62 | AB105: 110.00 | AC105: 90.00 | AD105: 0 | AF105: 128.00 | AG105: 27.63 | AH105: -128.00 | AI105: -27.63 | AJ105: -18.00 | AK105: 62.37 | AM105: 227.25 | AN105: 35.83 | AO105: -227.25 | AP105: -35.83 | AQ105: -117.25 | AR105: 54.17 | AT105: 161.20 | AU105: 30.97 | AV105: -161.20 | AW105: -30.97 | AX105: -51.20 | AY105: 59.03 | BB105: 68.48 | BC105: 18.99 | BD105: -68.48 | BE105: -18.99 | BF105: 41.52 | BG105: 71.01 | BI105: 27.89 | BJ105: 9.59 | BK105: -27.89 | BL105: -9.59 | BM105: 82.11 | BN105: 80.41 | BP105: 83.20 | BQ105: 32.24 | BR105: -83.20 | BS105: -32.24 | BT105: 26.80 | BU105: 57.76
A106: 231.00 | B106: 10.45 | C106: 34 | D106: 1.65 | E106: 3.30 | F106: 110.00 | G106: 110.00 | H106: 10.45 | I106: 110.00 | J106: 1.08 | K106: 110.00 | L106: 5.45 | M106: 110.00 | N106: 29.44 | O106: 110.00 | P106: 57.05 | T106: 181.50 | U106: 20.00 | V106: 84.00 | W106: 148.50 | X106: 30.00 | Y106: 70.00 | Z106: 84.00 | AA106: 97.62 | AB106: 110.00 | AC106: 90.00 | AD106: 0 | AF106: 132.00 | AG106: 27.07 | AH106: -132.00 | AI106: -27.07 | AJ106: -22.00 | AK106: 62.93 | AM106: 234.35 | AN106: 35.10 | AO106: -234.35 | AP106: -35.10 | AQ106: -124.35 | AR106: 54.90 | AT106: 166.24 | AU106: 30.34 | AV106: -166.24 | AW106: -30.34 | AX106: -56.24 | AY106: 59.66 | BB106: 70.62 | BC106: 18.60 | BD106: -70.62 | BE106: -18.60 | BF106: 39.38 | BG106: 71.40 | BI106: 28.76 | BJ106: 9.40 | BK106: -28.76 | BL106: -9.40 | BM106: 81.24 | BN106: 80.60 | BP106: 85.80 | BQ106: 31.58 | BR106: -85.80 | BS106: -31.58 | BT106: 24.20 | BU106: 58.42
A107: 238.00 | B107: 10.45 | C107: 35 | D107: 1.70 | E107: 3.40 | F107: 110.00 | G107: 110.00 | H107: 10.45 | I107: 110.00 | J107: 1.08 | K107: 110.00 | L107: 5.45 | M107: 110.00 | N107: 29.44 | O107: 110.00 | P107: 57.05 | T107: 187.00 | U107: 20.00 | V107: 84.00 | W107: 153.00 | X107: 30.00 | Y107: 70.00 | Z107: 84.00 | AA107: 97.62 | AB107: 110.00 | AC107: 90.00 | AD107: 0 | AF107: 136.00 | AG107: 26.54 | AH107: -136.00 | AI107: -26.54 | AJ107: -26.00 | AK107: 63.46 | AM107: 241.45 | AN107: 34.41 | AO107: -241.45 | AP107: -34.41 | AQ107: -131.45 | AR107: 55.59 | AT107: 171.28 | AU107: 29.75 | AV107: -171.28 | AW107: -29.75 | AX107: -61.28 | AY107: 60.25 | BB107: 72.76 | BC107: 18.23 | BD107: -72.76 | BE107: -18.23 | BF107: 37.24 | BG107: 71.77 | BI107: 29.63 | BJ107: 9.21 | BK107: -29.63 | BL107: -9.21 | BM107: 80.37 | BN107: 80.79 | BP107: 88.40 | BQ107: 30.96 | BR107: -88.40 | BS107: -30.96 | BT107: 21.60 | BU107: 59.04
A108: 110.00 | B108: 10.45 | C108: 36 | D108: 1.75 | E108: =F111/D114 -> 1.57 | F108: 110.00 | G108: 110.00 | H108: 10.45 | I108: 110.00 | J108: 1.08 | K108: 110.00 | L108: 5.45 | M108: 110.00 | N108: 29.44 | O108: 110.00 | P108: 57.05 | T108: 192.50 | U108: 20.00 | V108: 84.00 | W108: 157.50 | X108: 30.00 | Y108: 70.00 | Z108: 84.00 | AA108: 97.62 | AB108: 110.00 | AC108: 90.00 | AD108: 0 | AF108: 62.86 | AG108: 44.39 | AH108: -62.86 | AI108: -44.39 | AJ108: =IF((AH108+($AF$83*2)+($D$114-$E$114))>AJ107,AJ107-0.001,(AH108+($AF$83*2)+($D$114-$E$114))) -> -26.00 | AK108: =IF((AI108+($E$115*2)+($D$115-$E$115))<AK107,AK107+0.001,(AI108+($E$115*2)+($D$115-$E$115))) -> 63.47 | AM108: 111.60 | AN108: 57.56 | AO108: -111.60 | AP108: -57.56 | AQ108: =IF((AO108+($AM$83*2)+($AL$116-$AM$116))>AQ107,AQ107-0.001,(AO108+($AM$83*2)+($AL$116-$AM$116))) -> -131.45 | AR108: =IF((AP108+($AN$83*2)+($AL$117-$AM$117))<AR107,AR107+0.001,(AP108+($AN$83*2)+($AL$117-$AM$117))) -> 55.59 | AT108: 79.16 | AU108: 49.76 | AV108: -79.16 | AW108: -49.76 | AX108: =IF((AV108+($AT$83*2)+($AL$127-$AM$127))>AX107,AX107-0.001,(AV108+($AT$83*2)+($AL$127-$AM$127))) -> -61.28 | AY108: =IF((AW108+($AU$83*2)+($AL$128-$AM$128))<AY107,AY107+0.001,(AW108+($AU$83*2)+($AL$128-$AM$128))) -> 60.26 | BB108: 33.63 | BC108: 30.50 | BD108: -33.63 | BE108: -30.50 | BF108: =IF((BD108+($BB$83*2)+($BB$116-$BC$116))>BF107,BF107-0.001,(BD108+($BB$83*2)+($BB$116-$BC$116))) -> 37.24 | BG108: =IF((BE108+($BC$83*2)+($BB$117-$BC$117))<BG107,BG107+0.001,(BE108+($BC$83*2)+($BB$117-$BC$117))) -> 71.77 | BI108: 13.69 | BJ108: 15.41 | BK108: -13.69 | BL108: -15.41 | BM108: =IF((BK108+($BI$83*2)+($BB$127-$BC$127))>BM107,BM107-0.001,(BK108+($BI$83*2)+($BB$127-$BC$127))) -> 80.37 | BN108: =IF((BL108+($BJ$83*2)+($BB$128-$BC$128))<BN107,BN107+0.001,(BL108+($BJ$83*2)+($BB$128-$BC$128))) -> 80.79 | BP108: 40.86 | BQ108: 51.79 | BR108: -40.86 | BS108: -51.79 | BT108: =IF((BR108+($BP$83*2)+($BK$114-$BL$114))>BT107,BT107-0.001,(BR108+($BP$83*2)+($BK$114-$BL$114))) -> 21.60 | BU108: =IF((BS108+($BQ$83*2)+($BK$115-$BL$115))<BU107,BU107+0.001,(BS108+($BQ$83*2)+($BK$115-$BL$115))) -> 59.04
C109: original | H109: menos 2 | N109: más 1
D110: Productor C | E110: Productor D | F110: Total | I110: Individuo A | J110: Individuo B | K110: Total | O110: Individuo A | P110: Individuo B | Q110: Total
C111: Dotación factor 1 | D111: =EOC2descentral!C7 -> 84 | E111: =EOC2descentral!D7 -> 26 | F111: =E111+D111 -> 110 | G111: =(D120*((D112/D111)^(D121)))/(D121*((D111/D112)^(D120))) -> 0.5555555556 | H111: Dotación Bien 1 | I111: =D111*0.5 -> 42 | J111: =K111-I111 -> 68 | K111: =F111 -> 110 | N111: Dotación Bien 1 | O111: =((F111-D111)*0.2)+D111 -> 89.2 | P111: =Q111-O111 -> 20.8 | Q111: =K111 -> 110 | AK111: MENOS 2 | BA111: MÁS 1
C112: Dotación factor 2 | D112: =EOC2descentral!C8 -> 20 | E112: =EOC2descentral!D8 -> 70 | F112: =E112+D112 -> 90 | G112: =(E122*((E112/E111)^(E123)))/(E123*((E111/E112)^(E122))) -> 1.8 | H112: Dotación Bien 2 | I112: =D112*0.5 -> 10 | J112: =K112-I112 -> 80 | K112: =F112 -> 90 | N112: Dotación Bien 2 | O112: =((F112-D112)*0.4)+D112 -> 48 | P112: =Q112-O112 -> 42 | Q112: =K112 -> 90 | AL112: Individuo A | AM112: Individuo B | AN112: Total | BB112: Individuo A | BC112: Individuo B | BD112: Total | BJ112: DOTACIÓN
C113: producción | D113: =D111^(D120)*D112^(D121)*D128 -> 54.61406451 | E113: =E111^(E122)*E112^(E123)*D129 -> 47.10295606 | I113: =(I111^(D120)*I112^(D121))*D128 -> 27.30703225 | J113: =J111^(E122)*J112^(E123)*D129 -> 74.96482945 | O113: =O111^(D120)*O112^(D121)*D128 -> 74.06751418 | P113: =P111^(E122)*P112^(E123)*D129 -> 31.70844235 | AK113: Dotación Bien 1 | AL113: =I111 -> 42 | AM113: 68 | AN113: 110 | BA113: Dotación Bien 1 | BB113: =O111 -> 89.2 | BC113: 20.8 | BD113: 110 | BK113: Individuo A | BL113: Individuo B | BM113: Total
C114: Demanda Bruta factor 1 | D114: =(D120/(D120+E122))*F111 -> 70 | E114: =(E122/(D120+E122))*F111 -> 40 | F114: =E114+D114 -> 110 | G114: =(D120*((D115/D114)^(D121)))/(D121*((D114/D115)^(D120))) -> 1 | H114: Demanda Bruta Bien 1 | I114: =(D120*I111)+(J117*I112*D120) -> 38.98461538 | J114: =(E122*J111)+(E122*J117*J112) -> 71.01538462 | K114: =J114+I114 -> 110 | N114: Demanda Bruta Bien 1 | O114: =($D$120*O111)+(P117*O112*$D$120) -> 88.6 | P114: =($E$122*P111)+($E$122*P117*P112) -> 21.4 | Q114: =P114+O114 -> 110 | R114: =($D$120*((O115/O114)^($D$121)))/($D$121*((O114/O115)^($D$120))) -> 1.28440367 | AK114: Dotación Bien 2 | AL114: 10 | AM114: 80 | AN114: 90 | BA114: Dotación Bien 2 | BB114: 48 | BC114: 42 | BD114: 90 | BJ114: Dotación Bien 1 | BK114: =D111 -> 84 | BL114: 26 | BM114: 110
C115: Demanda Bruta factpr 2 | D115: =(D121/(D121+E123))*F112 -> 30 | E115: =(E123/(E123+D121))*F112 -> 60 | F115: =E115+D115 -> 90 | G115: =(E122*((E115/E114)^(E123)))/(E123*((E114/E115)^(E122))) -> 1 | H115: Demanda Bruta Bien 2 | I115: =(D121*J118*I111)+(D121*I112) -> 12.20224719 | J115: =(E123*J118*J111)+(E123*J112) -> 77.79775281 | K115: =J115+I115 -> 90 | N115: Demanda Bruta Bien 2 | O115: =($D$121*P118*O111)+($D$121*O112) -> 48.7706422 | P115: =($E$123*P118*P111)+($E$123*P112) -> 41.2293578 | Q115: =P115+O115 -> 90 | R115: =($E$122*((P115/P114)^($E$123)))/($E$123*((P114/P115)^($E$122))) -> 1.28440367 | AK115: UTILIDAD | AL115: =AL113^($D$120)*AL114^($D$121) -> 27.30703225 | AM115: =AM113^($E$122)*AM114^($E$123) -> 74.96482945 | BA115: UTILIDAD | BB115: =BB113^($D$120)*BB114^($D$121) -> 74.06751418 | BC115: =BC113^($E$122)*BC114^($E$123) -> 31.70844235 | BJ115: Dotación Bien 2 | BK115: 20 | BL115: 70 | BM115: 90
C116: producción | D116: =D114^(D120)*D115^(D121)*D128 -> 54.28814527 | E116: =E114^(E122)*E115^(E123)*D129 -> 51.01698003 | I116: =(I114^(D120)*I115^(D121))*D128 -> 27.51422113 | J116: =J114^(E122)*J115^(E123)*D129 -> 75.01035294 | O116: =O114^($D$120)*O115^($D$121)*D128 -> 74.07150138 | P116: =P114^($E$122)*P115^($E$123)*D129 -> 31.71680641 | AK116: Demanda Bruta Bien 1 | AL116: =I114 -> 38.98461538 | AM116: 71.01538462 | AN116: 110 | BA116: Demanda Bruta Bien 1 | BB116: =O114 -> 88.6 | BC116: 21.4 | BD116: 110 | BJ116: UTILIDAD | BK116: =BK114^($D$120)*BK115^($D$121) -> 54.61406451 | BL116: =BL114^($E$122)*BL115^($E$123) -> 47.10295606
C117: Demanda Neta factor 1 | D117: =D114-D111 -> -14 | E117: =E114-E111 -> 14 | H117: P2/P1 | J117: =((D121*I111)+(E123*J111))/((D120*I112)+(E122*J112)) -> 1.369230769 | K117: k inicial | N117: P2/P1 | P117: =(($D$121*O111)+($E$123*P111))/(($D$120*O112)+($E$122*P112)) -> 0.7785714286 | Q117: k inicial | AK117: Demanda Bruta Bien 2 | AL117: 12.20224719 | AM117: 77.79775281 | AN117: 90 | BA117: Demanda Bruta Bien 2 | BB117: 48.7706422 | BC117: 41.2293578 | BD117: 90
C118: Demanda Neta factor 2 | D118: =D115-D112 -> 10 | E118: =E115-E112 -> -10 | H118: P1/P2 | J118: =1/J117 -> 0.7303370787 | K118: =(I114^(D120))*(I115^(D121)) -> 27.51422113 | N118: P1/P2 | P118: =1/P117 -> 1.28440367 | Q118: =(O114^($D$120))*(O115^($D$121)) -> 74.07150138 | AK118: UTILIDAD | AL118: =AL116^($D$120)*AL117^($D$121) -> 27.51422113 | AM118: =AM116^($E$122)*AM117^($E$123) -> 75.01035294 | BA118: UTILIDAD | BB118: =BB116^($D$120)*BB117^($D$121) -> 74.07150138 | BC118: =BC116^($E$122)*BC117^($E$123) -> 31.71680641
C119: RMT | D119: =B133/B132 -> 0.9415750615 | AK119: P2/P1 | AM119: =J117 -> 1.369230769 | AN119: =K117 -> k inicial | BA119: P2/P1 | BC119: =P117 -> 0.7785714286 | BD119: =Q117 -> k inicial
A120: a | B120: =EOC2descentral!C38 -> 0.6 | C120: g | D120: =EOC2descentral!C23 -> 0.7 | H120: menos 1 | N120: más 2 | AK120: P1/P2 | AM120: =J118 -> 0.7303370787 | AN120: =K118 -> 27.51422113 | BA120: P1/P2 | BC120: =P118 -> 1.28440367 | BD120: =Q118 -> 74.07150138
A121: 1-a | B121: =1-B120 -> 0.4 | C121: 1-r | D121: =1-D120 -> 0.3 | I121: Individuo A | J121: Individuo B | K121: Total | O121: Individuo A | P121: Individuo B | Q121: Total
A122: b | B122: =EOC2descentral!D40 -> 0.4 | C122: d | E122: =EOC2descentral!D25 -> 0.4 | H122: Dotación Bien 1 | I122: =D111*0.8 -> 67.2 | J122: =K122-I122 -> 42.8 | K122: =K111 -> 110 | N122: Dotación Bien 1 | O122: =((F111-D111)*0.5)+D111 -> 97 | P122: =Q122-O122 -> 13 | Q122: =Q111 -> 110 | AK122: MENOS 1 | BA122: MÁS 2
A123: 1-b | B123: =1-B122 -> 0.6 | C123: 1-d | E123: =1-E122 -> 0.6 | H123: Dotación Bien 2 | I123: =D112*0.8 -> 16 | J123: =K123-I123 -> 74 | K123: =K112 -> 90 | N123: Dotación Bien 2 | O123: =((F112-D112)*0.8)+D112 -> 76 | P123: =Q123-O123 -> 14 | Q123: =Q112 -> 90 | AL123: Individuo A | AM123: Individuo B | AN123: Total | BB123: Individuo A | BC123: Individuo B | BD123: Total
I124: =I122^($D$120)*I123^($D$121)*D128 -> 43.6912516 | J124: =J122^($E$122)*J123^($E$123)*D129 -> 59.44516536 | O124: =O122^($D$120)*O123^($D$121)*D128 -> 90.15385286 | P124: =P122^($E$122)*P123^($E$123)*D129 -> 13.59108606 | AK124: Dotación Bien 1 | AL124: =I122 -> 67.2 | AM124: 42.8 | AN124: 110 | BA124: Dotación Bien 1 | BB124: =O122 -> 97 | BC124: 13 | BD124: 110
C125: P2/P1 | E125: =((D121*D111)+(E123*E111))/((D120*D112)+(E122*E112)) -> 0.9714285714 | F125: k inicial | H125: Demanda Bruta Bien 1 | I125: =($D$120*I122)+(J128*I123*$D$120) -> 59.62352941 | J125: =($E$122*J122)+($E$122*J128*J123) -> 50.37647059 | K125: =J125+I125 -> 110 | N125: Demanda Bruta Bien 1 | O125: =($D$120*O122)+(P128*O123*$D$120) -> 101.2857143 | P125: =($E$122*P122)+($E$122*P128*P123) -> 8.714285714 | Q125: =P125+O125 -> 110 | R125: =($D$120*((O126/O125)^($D$121)))/($D$121*((O125/O126)^($D$120))) -> 1.593495935 | AK125: Dotación Bien 2 | AL125: 16 | AM125: 74 | AN125: 90 | BA125: Dotación Bien 2 | BB125: 76 | BC125: 14 | BD125: 90
C126: P1/P2 | E126: =1/E125 -> 1.029411765 | F126: =(D114^(D120))*(D115^(D121)) -> 54.28814527 | H126: Demanda Bruta Bien 2 | I126: =($D$121*J129*I122)+($D$121*I123) -> 22.7434555 | J126: =($E$123*J129*J122)+($E$123*J123) -> 67.2565445 | K126: =J126+I126 -> 90 | N126: Demanda Bruta Bien 2 | O126: =($D$121*P129*O122)+($D$121*O123) -> 69.17073171 | P126: =($E$123*P129*P122)+($E$123*P123) -> 20.82926829 | Q126: =P126+O126 -> 90 | R126: =($E$122*((P126/P125)^($E$123)))/($E$123*((P125/P126)^($E$122))) -> 1.593495935 | AK126: UTILIDAD | AL126: =AL124^($D$120)*AL125^($D$121) -> 43.6912516 | AM126: =AM124^($E$122)*AM125^($E$123) -> 59.44516536 | BA126: UTILIDAD | BB126: =BB124^($D$120)*BB125^($D$121) -> 90.15385286 | BC126: =BC124^($E$122)*BC125^($E$123) -> 13.59108606
I127: =I125^($D$120)*I126^($D$121)*D128 -> 44.65286315 | J127: =J125^($E$122)*J126^($E$123)*D129 -> 59.91448424 | O127: =O125^($D$120)*O126^($D$121)*D128 -> 90.33591494 | P127: =P125^($E$122)*P126^($E$123)*D129 -> 14.699316 | AK127: Demanda Bruta Bien 1 | AL127: =I125 -> 59.62352941 | AM127: 50.37647059 | AN127: 110 | BA127: Demanda Bruta Bien 1 | BB127: =O125 -> 101.2857143 | BC127: 8.714285714 | BD127: 110
C128: AC | D128: =EOC2descentral!C9 -> 1 | H128: P2/P1 | J128: =((D121*I122)+(E123*J122))/((D120*I123)+(E122*J123)) -> 1.123529412 | K128: k inicial | N128: P2/P1 | P128: =(($D$121*O122)+($E$123*P122))/(($D$120*O123)+($E$122*P123)) -> 0.6275510204 | Q128: k inicial | AK128: Demanda Bruta Bien 2 | AL128: 22.7434555 | AM128: 67.2565445 | AN128: 90 | BA128: Demanda Bruta Bien 2 | BB128: 69.17073171 | BC128: 20.82926829 | BD128: 90
C129: AD | D129: =EOC2descentral!D9 -> 1 | H129: P1/P2 | J129: =1/J128 -> 0.890052356 | K129: =(I125^($D$120))*(I126^($D$121)) -> 44.65286315 | N129: P1/P2 | P129: =1/P128 -> 1.593495935 | Q129: =(O125^($D$120))*(O126^($D$121)) -> 90.33591494 | AK129: UTILIDAD | AL129: =AL127^($D$120)*AL128^($D$121) -> 44.65286315 | AM129: =AM127^(E122)*AM128^(E123) -> 59.91448424 | BA129: UTILIDAD | BB129: =BB127^($D$120)*BB128^($D$121) -> 90.33591494 | BC129: =BC127^($E$122)*BC128^($E$123) -> 14.699316
AK130: P2/P1 | AM130: =J128 -> 1.123529412 | AN130: =K128 -> k inicial | BA130: P2/P1 | BC130: =P128 -> 0.6275510204 | BD130: =Q128 -> k inicial
A131: MAXIMA PRODUCCIÓN | D131: curva de tranasformación | E131: Inicio | F131: menos 2 | G131: menos 1 | H131: original | I131: más 1 | J131: más 2 | K131: final | AK131: P1/P2 | AM131: =J129 -> 0.890052356 | AN131: =K129 -> 44.65286315 | BA131: P1/P2 | BC131: =P129 -> 1.593495935 | BD131: =Q129 -> 90.33591494
A132: C | B132: =F111^(D120)*F112^(D121)*D128 -> 103.5732568 | D132: x1 | E132: 0 | F132: =I114 -> 38.98461538 | G132: =I125 -> 59.62352941 | H132: =D114 -> 70 | I132: =O114 -> 88.6 | J132: =O125 -> 101.2857143 | K132: =F111 -> 110
A133: D | B133: =F111^(E122)*F112^(E123)*D129 -> 97.52199561 | D133: x2 | E133: 0 | F133: =I115 -> 12.20224719 | G133: =I126 -> 22.7434555 | H133: =D115 -> 30 | I133: =O115 -> 48.7706422 | J133: =O126 -> 69.17073171 | K133: =F112 -> 90
D135: Frontera de Posibilidades de Producción | E135: Inicio | F135: menos 2 | G135: menos 1 | H135: original | I135: más 1 | J135: más 2 | K135: final
D136: x1 | E136: 0 | F136: =I116 -> 27.51 | G136: =I127 -> 44.65 | H136: =D116 -> 54.29 | I136: =O116 -> 74.07 | J136: =O127 -> 90.34 | K136: =(F111^$D$120)*(F112^$D$121)*D128 -> 103.57
D137: x2 | E137: =(F111^$E$122)*(F112^$E$123)*D129 -> 97.52 | F137: =J116 -> 75.01 | G137: =J127 -> 59.91 | H137: =E116 -> 51.02 | I137: =P116 -> 31.72 | J137: =P127 -> 14.70 | K137: 0
E138: =SUM(E136:E137) -> 97.52 | F138: 102.52 | G138: 104.57 | H138: 105.31 | I138: 105.79 | J138: 105.04 | K138: 103.57
D141: Empresa C | E141: Empresa D
C143: A | D143: =D120*D116 -> 38 | E143: =D121*E116 -> 15.30509401
C144: B | D144: =E122*D116 -> 21.72 | E144: =E123*E116 -> 30.61018802
D145: =D144+D143 -> 59.72 | E145: =E144+E143 -> 45.92

Sheet Hoja1 (hidden)
C1: 0.5 | D1: 0.5 | H1: 0.5 | I1: 0.5 | M1: x1 | N1: x2
B2: ua | C2: xi alfa | D2: xi 1-alfa | G2: ub | H2: xi beta | I2: x2 1-beta | K2: 0 | L2: 1 | M2: =$A$9*L2 -> 13853.04541 | N2: =$F$9-($F$16*M2) -> 0
B3: =C3*D3 -> 2436.028664 | C3: =C14^(C1) -> 58.84948048 | D3: =C15^(D1) -> 41.39422547 | G3: =H3*I3 -> 2436.028664 | H3: =C16^(H1) -> 58.84948048 | I3: =C17^(I1) -> 41.39422547 | K3: 0.1 | L3: 0.9 | M3: =$A$9*L3 -> 12467.74087 | N3: =$F$9-($F$16*M3) -> 685.3927611
K4: 0.2 | L4: 0.8 | M4: 11082.43633 | N4: 1370.785522
C5: 0.8 | D5: 0.9 | H5: 0.9 | I5: 0.8 | K5: 0.3 | L5: 0.7 | M5: 9697.131789 | N5: 2056.178283
A6: yc | B6: a | C6: xi alfa | D6: xi 1-alfa | F6: yd | G6: a | H6: xi beta | I6: x2 1-beta | K6: 0.4 | L6: 0.6 | M6: 8311.827248 | N6: 2741.571044
A7: =B7*C7*D7 -> 1331.222464 | B7: 6 | C7: =C8^(C5) -> 13.96661017 | D7: =D8^(D5) -> 15.88577386 | F7: =G7*H7*I7 -> 4092.423778 | G7: 3 | H7: =H8^(H5) -> 41.63000802 | I7: =I8^(I5) -> 32.76821995 | K7: 0.5 | L7: 0.5 | M7: 6926.522707 | N7: 3426.963805
C8: 27 | D8: 21.6 | H8: 63 | I8: 78.4 | K8: 0.6 | L8: 0.4 | M8: 5541.218165 | N8: 4112.356566
A9: =B7*H10^(C5)*I10^(D5) -> 13853.04541 | C9: q1c | D9: q2c | F9: =G7*H10^(H5)*I10^(I5) -> 6853.927611 | H9: q1d | I9: q2d | K9: 0.7 | L9: 0.3 | M9: 4155.913624 | N9: 4797.749327
H10: =H8+C8 -> 90 | I10: =I8+D8 -> 100 | K10: 0.8 | L10: 0.2 | M10: 2770.609083 | N10: 5483.142089
K11: 0.9 | L11: 0.1 | M11: 1385.304541 | N11: 6168.53485
D12: =F9*0.5+A9*0.5 -> 10353.48651 | K12: 1 | L12: 0 | M12: 0 | N12: 6853.927611
D13: =D14+D15 -> 10353.48651
B14: x1A | C14: =0.5*C1*B7*H10^(C5)*I10^(D5) -> 3463.261353 | D14: =C14+C16 -> 6926.522707 | F14: =(C1/D1)*(C15/C14) -> 0.4947596291 | G14: =C5/D5*D8/C8 -> 0.7111111111
B15: x2A | C15: =0.5*D1*G7*H10^(H5)*I10^(I5) -> 1713.481903 | D15: =C15+C17 -> 3426.963805 | F15: =H1/I1*C17/C16 -> 0.4947596291 | G15: =H5/I5*I8/H8 -> 1.4
B16: X1B | C16: =0.5*H1*B7*H10^(C5)*I10^(D5) -> 3463.261353 | F16: =F9/A9 -> 0.4947596291
B17: X2B | C17: =0.5*I1*G7*H10^(H5)*I10^(I5) -> 1713.481903
F18: =F14-F16+F15-F16 -> 0 | G18: =G15-G14 -> 0.6888888889
